{"text_format":"1","workbook":"xlsx","n_sheets":5,"sheets":["Instructions","FY27--SRPOS Verification","FY27--POS","Sheet1","Named Ranges"],"not_rendered":{"charts":0,"images":0,"macros":1,"external_links":0,"defined_names":784,"comments":0,"pivot_tables":0},"unopened":[],"bounds":{"document_bytes":16777216,"sheet_cells":100000,"rows_first":2000,"rows_last":500,"rows_between":2000,"halvings":0,"cell_chars":16384,"cell_head_chars":4096},"cells_cut":0,"cells_raw":0,"read":"whole","date_system":"1900"}

{"sheet":"Instructions","index":0,"n_rows":82,"n_cols":3,"rows_kept":82,"cut":false,"hidden":false,"merged":[[76,0,76,6],[1,0,1,9],[2,0,2,9],[3,0,3,9],[18,0,18,9],[79,0,79,6],[80,0,80,6],[81,0,81,6],[78,0,78,6],[77,0,77,6]]}
[]
["Completing the Program of Study Spreadsheet"]
["July 1, 2026 - June 30, 2027 (FY27)"]
["(Name) Consortium"]
[]
["Here is information to complete the FY27 POS spreadsheet tabs. You will submit this completed document as a "]
["separate attachment along with your spring consortium plan. NOTE: Using this document in Google Sheets or saving"]
["as an MS Excel document in a format other than the original may disable dropdown menu options."]
[]
["SRPOS Verification tab:",null,"Consortium leaders verify that each of the Programs of Study identified as \"SRPOS\" meet"]
[null,null,"ALL SEVEN of the criteria required for a State-Recognized Program of Study."]
[" ",null,"Check the box on row 16 and insert consortium leader signatures on row 19."]
[]
["POS tab:",null,"Consortium leaders may submit up to 10 Career Clusters. Each of which may have up to two POS."]
[null,null,"If financial support is being requested for a POS, this  should be reflected in your Consortium Plan."]
[]
[]
[]
["Key Instructions: FY27--POS"]
["* Dropdown menus are provided to complete POS information in rows 2 - 7, 12 - 13, 15 - 17, 20 - 21.  Rows 8 -11 are "]
["   in development."]
["* Two columns are provided for each Career Cluster to be used by those who are prioritizing more than one POS"]
["   within the selected career cluster."]
[]
["ROWS 2-3: Do NOT manually enter information in row 2-3 cells highlighted in YELLOW--those cells should populate with"]
["    information when you begin entering field, cluster, and POS information in the first column of each Career Cluster."]
["    Note:  Row 2 starts with the first word of the old field the descritions that follow are correct. "]
[]
["ROW 4: Identify the POS. Note that the second POS column is shaded BLUE. This will autopopulate but can be changed."]
["    If you are aligning to a second POS within the same career cluster you can select a different \"POS\" here. "]
["    The postsecondary partners and postsecondary programs (rows 8 - 11) to which you can align your POS will be based on"]
["    the POS choices you identify in these two cells. Cells 8 -11 are in the process of being developed. They will not "]
["    autopopulate at this time."]
[]
["ROW 5-7: From the dropdown menu options of CTE approved programs offered by the POS selected in row 4, enter"]
["      up to THREE CTE approved programs that align with that POS. NOTE that these options may be different  if there are"]
["      two different POS listed in that career cluster on row 4."]
[]
["ROW 8: At this time the information will have to be entered manually or copied and pasted."]
["     A list of Minnesota State postsecondary institutions will appear in the dropdown menu based on the programs they"]
["     offer that aligned with the field/cluster/pos you identify in rows 2-4. There is an option \"Institution Not on List\"."]
["     If the institution that you are partnering with is not on the list, use this option and provide the missing institution's"]
["     name and college program in your plan."]
[]
["ROWS 9-11: At this time the information will have to be entered manually or copied and pasted."]
["     From the dropdown menu options of postsecondary programs offered by the institution you selected in row 8,"]
["     identify in rows 9-11 up to THREE college programs that align with this POS. NOTE that these options will be different "]
["     if there are two different POS listed in that career cluster on row 4. Also note that in many cases there are more than"]
["     three college programs that are realated to the POS on row 4. Highlight the three that are your priority at this time."]
["     If there are college programs that you did not list that are included in the POS on row 4, you can still funds these even"]
["     though they are not listed on this spreadsheet."]
[]
["ROW 12: Select from the three options in the dropdown menu (State-Recognized, Funing, or Both) to identify"]
["    the type of POS being used on row 4."]
[]
["ROW 13: Select \"Yes\" or \"No\" from the dropdown menu to identify whether the POS highlighted in row 4 offers Dual "]
["     Enrollment opportunities."]
[]
["ROW 15-17: From the dropdown menu options of approved work-based learning programs offered by the POS selected"]
["     in row 4, enter up to THREE approved WBL programs that related to that POS. NOTE that these options may be "]
["     different if there are two different POS listed in that career cluster on row 4."]
[]
["ROW 18: Identify the secondary certificates and Industry Recognized Credentials (IRC) that are related to the POS identified "]
["     in row 4."]
[]
["ROW 20: There are generally 4 types of Academic Award (Certificates, Diplomas, AS, & AAS). List those that apply to the POS"]
["     identified in row 4."]
[]
["ROW 21:   At the postsecondary level there a limited number of WBL options (apprenticeship, clinical, internship, service"]
["     learning) List those apply to the POS identified in row 4."]
[]
["ROW 22: Identify the licesures, certificates, and Industry Recognized Credentials (IRC). List those that apply to the POS"]
["     identified in row 4."]
[]
[]
["RESOURCE LINKS"]
["Minnesota Department of Education—Career and Technical Education"]
["Minnesota Department of Education—Program Approval"]
["Maps of Approved Secondary Programs"]
["Minnesota State—Career and Technical Education"]
["Minnesota State—Consortia Resources"]
["Minnesota State—State-Recognized Programs of Study User Guide"]

{"sheet":"FY27--SRPOS Verification","index":1,"n_rows":20,"n_cols":9,"rows_kept":20,"cut":false,"hidden":false,"merged":[[1,0,1,9],[2,0,2,9],[3,0,3,9],[13,0,13,9],[15,8,16,9],[18,0,18,3],[18,6,18,9],[19,0,19,3],[19,6,19,9],[7,0,7,9],[8,0,8,9],[9,0,9,9],[10,0,10,9],[11,0,11,9],[12,0,12,9]]}
[]
["State-Recognized Program of Study Verification"]
["July 1, 2026 - June 30, 2027 (FY27)"]
["[NAME] Consortium"]
[]
[]
["There are seven minimum criteria that must be met for identification as a State-Recognized Program of Study:"]
["1. Course standards accurately align to the academic, technical, and employability skills learners must master for entry and success in a given career pathway."]
["2. Program of Study incorporates active involvement from an integrated network of partners."]
["3. Secondary program(s) meets MDE program approval requirements and incorporate courses that lead to postsecondary credits/credentials."]
["4. Postsecondary academic program meets Minnesota State board policy and Higher Learning Commission requirements."]
["5. Materials, Equipment and Resources used in the program reflect current workplace, industry, and/or occupational standards."]
["6. Incorporates authentic work experiences at the secondary and/or postsecondary level that are valued by industry."]
["7. Program of Study development, improvement and advocacy are supported by findings from a comprehensive local needs assessment."]
[]
["The State-Recognized Programs of Study submitted by our consortium",null,null,null,null,null,null,null,"[Insert \"X\" in the box to confirm]"]
["meet all seven of the minimum criteria identified above."]
[]
[]
["[Secondary Consortium Leader]",null,null,null,null,null,"[Postsecondary Consortium Leader]"]

{"sheet":"FY27--POS","index":2,"n_rows":26,"n_cols":21,"rows_kept":26,"cut":false,"hidden":false,"merged":[[0,1,0,2],[0,19,0,20],[0,17,0,18],[0,15,0,16],[0,13,0,14],[0,11,0,12],[0,9,0,10],[0,7,0,8],[0,5,0,6],[0,3,0,4]]}
[{"$f":"Instructions!A4","v":"(Name) Consortium"},"CAREER CLUSTER 1",null,"CAREER CLUSTER 2",null,"CAREER CLUSTER 3",null,"CAREER CLUSTER 4",null,"CAREER CLUSTER 5",null,"CAREER CLUSTER 6",null,"CAREER CLUSTER 7",null,"CAREER CLUSTER 8",null,"CAREER CLUSTER 9",null,"CAREER CLUSTER 10"]
["Career Field",null,{"$f":"B2","v":0},null,{"$f":"D2","v":0},null,{"$f":"F2","v":0},null,{"$f":"H2","v":0},null,{"$f":"J2","v":0},null,{"$f":"L2","v":0},null,{"$f":"N2","v":0},null,{"$f":"P2","v":0},null,{"$f":"R2","v":0},null,{"$f":"T2","v":0}]
["Career Cluster",null,{"$f":"B3","v":0},null,{"$f":"D3","v":0},null,{"$f":"F3","v":0},null,{"$f":"H3","v":0},null,{"$f":"J3","v":0},null,{"$f":"L3","v":0},null,{"$f":"N3","v":0},null,{"$f":"P3","v":0},null,{"$f":"R3","v":0},null,{"$f":"T3","v":0}]
["Programs of Study",null,{"$f":"B4","v":0},null,{"$f":"D4","v":0},null,{"$f":"F4","v":0},null,{"$f":"H4","v":0},null,{"$f":"J4","v":0},null,{"$f":"L4","v":0},null,{"$f":"N4","v":0},null,{"$f":"P4","v":0},null,{"$f":"R4","v":0},null,{"$f":"T4","v":0}]
["Secondary  Approved CTE Program 1"]
["Secondary  Approved CTE Program 2"]
["Secondary  Approved CTE Program 3"]
["Postsecondary Partner Institutions"]
["Postsecondary CTE Program #1"]
["Postsecondary CTE Program #2"]
["Postsecondary CTE Program #3"]
["POS Type"]
["Dual Enrollment Opportunities"]
["Recognized Secondary Credentials:"]
["Approved Work-based Learning Programs 1"]
["Approved Work-based Learning Programs 2"]
["Approved Work-based Learning Programs 3"]
["Certification and Industry Recognized Credential"]
["Recognized Postsecondary Credentials:"]
["Academic Award"]
["Work-based Learning"]
["Licensure, Certifications, and/or Industry Recognized Credentials"]
[]
["State-Recognized"]
["Funding"]
["Both"]

{"sheet":"Sheet1","index":3,"n_rows":65,"n_cols":2,"rows_kept":65,"cut":false,"hidden":false,"merged":[]}
["Agriculture-Food and Natural Resources (AFNR) - 019901, "]
["Aviation - 170400,"]
["Business - 140710,"]
["Communication Technology Careers - 171502,"]
["Computer Science: Information Technology Careers - 171512,"]
["Construction Careers - 171000,"]
["Cosmetology - 090204,"]
["Creative Design: Visual Arts and Design - 090204,"]
["Dental Services - 070101,"]
["Early Childhood: Education - 090201,"]
["Family and Consumer Science (FCS) - 090101,"]
["Healthcare Careers - 070300,"]
["Hospitality-Events and Tourism - 090301,"]
["Manufacturing Careers - 171710,"]
["Marketing - 040800,"]
["Public Service and Safety - 090401,"]
["Transportation Careers - 170302,"]
[]
["Work-based Learning (ACTE-SPED) - 000750"]
["Work-based Learning (AFNR) - 019090"]
["Work-based Learning (Business) - 149090"]
["Work-based Learning (Diversified) - 009090"]
["Work-based Learning (FCS) - 099090"]
["Work-based Learning (Health) - 079090"]
["Work-based Learning (Marketing) - 049090"]
["Work-based Learning (Trade and Industry) - 179090"]
["Youth Apprenticeship (AFNR) - 019095"]
["Youth Apprenticeship (Business) - 149095"]
["Youth Apprenticeship (Diversified) - 009095"]
["Youth Apprenticeship (FCS) - 099095"]
["Youth Apprenticeship (Health) - 079095"]
["Youth Apprenticeship (Marketing) - 049095"]
["Youth Apprenticeship (Trade and Industry) - 179095"]
[null,"Yes"]
["Certificate,","No"]
["Diploma,"]
["AS,"]
["AAS,"]
["Certificate-Diploma-AS-ASS,"]
["Certificate-Diploma-ASS,"]
["Certificate-Diploma-AS,"]
["Certificate-Diploma,"]
["Certificate-AS-AAS,"]
["Certificate-AAS,"]
["Certificate-AS,"]
["Diploma-AS-ASS,"]
["Diploma-ASS,"]
["Diploma-AS,"]
["AS-AAS,"]
[]
["Apprenticeship,"]
["Clinical,"]
["Internship,"]
["Service Learning,"]
["Apprenticeship-Clinical-Internship-Service Learning,"]
["Apprenticeship-Clinical-Internship,"]
["Apprenticeship-Clinical, Service Learning,"]
["Apprenticeship-Clinical,"]
["Apprenticeship-Internship-Service Learning,"]
["Apprenticeship-Service Learning,"]
["Apprenticeship-Internship,"]
["Clinical-Internship-Service Learning,"]
["Clinical-Service Learning,"]
["Clinical-Internship,"]
["Internship-Service Learning,"]

{"sheet":"Named Ranges","index":4,"n_rows":85,"n_cols":620,"rows_kept":85,"cut":false,"hidden":true,"merged":[]}
["Career_Fields",null,"Agriculture_Cultivating_Resources","Human_Caring_for_Communities","Business_Investing_in_the_Future","Engineering_Building_and_Moving","Arts_Creating_and_Experiencing"]
["Agriculture_Cultivating_Resources",null,"Agriculture","Education","Financial_Services","Supply_Chain_Transportation","Hospitality_Tourism"]
["Human_Caring_for_Communities",null,"Energy_Natural_Resources","Human_Services","Marketing_Sales","Construction","Arts_Entertainment_Design"]
["Business_Investing_in_the_Future",null,null,"Public_Service_Safety","Management_Entrepreneurship","Advanced_Manufacturing"]
["Engineering_Building_and_Moving",null,null,"Healthcare","Digital_Technology"]
["Arts_Creating_and_Experiencing"]
[]
[]
[]
[null,null,"Agriculture","Energy_Natural_Resources","Digital_Technology","Financial_Services","Marketing_Sales","Management_Entrepreneurship","Supply_Chain_Transportation","Construction","Advanced_Manufacturing","Hospitality_Tourism","Arts_Entertainment_Design","Healthcare","Education","Human_Services","Public_Service_Safety"]
[null,null,"Animal_Systems","Clean_Alternative_Energy","Data_Science_AI","Accounting","Retail_Customer_Experience","Business_Information_Management","Air_Space_Transportation","Architecture_Civil_Engineering","Engineering","Accommodations","Design_Digital_Arts","Biotechnology_Research_and_Development","Early_Childhood_Development","Behavioral_Mental_Health","Emergency_Response"]
[null,null,"Agribusiness","Conservation_Land_Management","IT_Support_Services","Banking_Credit","Marketing_Advertising","Entrepreneurship_Small_Business","Ground_Rail_Transportation","Construction_Planning_Development","Industrial_Machinery","Conferences_Events","Fasion_Interiors","Health_Data_Administration","Learner_Support_Community_Engagement","Community_Social_Services","Military_National_Security"]
[null,null,"Plant_Systems","Ecological_Research_Development","Network_Systems_Cybersecurity","Financial_Strategy_Investments","Strategic_Sales","Leadership_Operations","Maintenance_Repair","Equipment_Operation_Maintenance","Production_Automation","Culinary_Food_Services","Lighting_Sound_Technology","Physical_Health","Teaching_Training_Facilitation","Personal_Care_Services","Public_Safety"]
[null,null,"Agricultural_Technology_Automation","Environmental_Protection","Software_Solutions",null,"Marketing_Research_Analytics_Ethics","Project_Management","Marine_Transportation","Skilled_Trades","Robotics","Travel_Leisure","Media_Production_Broadcasting",null,"Education_Leadership_Training"]
[null,null,"Food_Science_Processing","Resource_Extraction","Uncrewed_Vehicle_Technology",null,null,"Regulation","Planning_Logistics",null,null,null,"Production_Automation"]
[null,null,"Water_Systems","Utilities","Web_Cloud",null,null,null,"Purchasing"]
[]
[]
[]
[]
[]
[]
["These are PROGRAMS OF STUDY (from above)",null,"Animal_Systems","Agribusiness","Agricultural_Technology_Automation","Food_Science_Processing","Water_Systems","Plant_Systems","Clean_Alternative_Energy","Conservation_Land_Management","Ecological_Reearch_Development","Enivronmental_Protection","Resource_Extraction","Utilities","Data_Science_AI","IT_Support_Services","Network_Systems_Cybersecurity","Software_Solutions","Uncrewed_Vehicle_Technology","Web_Cloud","Banking_Credit","Financial_Strategy_Investments","Accounting","Marketing_Research_Analytics_Ethics","Retail_Customer_Experience","Marketing_Advertising","Strategic_Sales","Business_Information_Management","Entrepreneurship_Small_Business","Leadership_Operations","Project_Management","Regulation","Air_Space_Transportation","Ground_Rail_Transportation","Maintenance_Repair","Marine_Transportation","Planning_Logistics","Purchasing_Warehousing","Architecture_Civil_Engineering","Equipment_Operation_Maintenance","Skilled_Trades","Engineering","Industrial_Machinery","Production_Automation","Robotics","Accommodations","Conferences_Events","Culinary_Food_Services","Travel_Leisure","Design_Digital_Arts","Fashion_Interiors","Lighting_Sound_Technology","Media_Production_Broadcasting","Biotechnology_Research_and_Development","Health_Data_Administration","Physical_Health","Early_Childhood_Development","Learner_Support_Community_Engagement","Teaching_Training_Facilitation","Emergency_Response","Military_National_Security","Public_Safety","Behavioral_Mental_Health","Community_Social_Services","Personal_Care_Services"]
[null,null,"Dakota_County_Technical_College_005","Alexandria_Technical_Community_College_004","Northland_Community_Technical_College_054","Dakota_County_Technical_College_023","Anoka_Ramsey_Community_College_047","Anoka_Technical_College_053","[none]","[none]","[none]","[none]","[none]","[none]","[none]","Alexandria_Technical_Community_College_031","Alexandria_Technical_Community_College_048","Anoka_Technical_College_059","[none]","Anoka_Technical_College_079","North_Hennepin_Community_College_007","Fond_du_Lac_Tribal_Community_College_068","Alexandria_Technical_Community_College_001","[none]","Alexandria_Technical_Community_College_045","Century_College_043","Century_College_057","Dakota_County_Technical_College_010","Dakota_County_Technical_College_049","Anoka_Technical_College_003","Anoka_Technical_College_030","Alexandria_Technical_Community_College_025","[none]","[none]","[none]","[none]","Dakota_County_Technical_College_038","[none]","Alexandria_Technical_Community_College_011","Century_College_040","Alexandria_Technical_Community_College_015","Alexandria_Technical_Community_College_019","Alexandria_Technical_Community_College_021","Alexandria_Technical_Community_College_041","Alexandria_Technical_Community_College_056","[none]","[none]","Central_Lakes_College_064","Normandale_Community_College_076","Alexandria_Technical_Community_College_077","[none]","Century_College_006","Fond_du_Lac_Tribal_Community_College_033","Alexandria_Technical_Community_College_008","Alexandria_Technical_Community_College_070","Lake_Superior_College_073","Central_Lakes_College_017","Century_College_058","Alexandria_Technical_Community_College_071","Anoka_Technical_College_018","Itasca_Community_College_046","Alexandria_Technical_Community_College_034","Anoka_Ramsey_Community_College_014","Alexandria_Technical_Community_College_022","Century_College_051"]
["These are COLLEGES offering these POS",null,"Minnesota_North_College_005","Central_Lakes_College_004","Ridgewater_College_054","Minnesota_West_Community_Technical_College_023","Central_Lakes_College_047","Central_Lakes_College_053",null,null,null,null,null,null,null,"Anoka_Technical_College_031","Anoka_Ramsey_Community_College_048","Anoka_Ramsey_Community_College_059",null,"Century_College_079","StCloud_Technical_Community_College_007","North_Hennepin_Community_College_068","Anoka_Ramsey_Community_College_001",null,"Anoka_Ramsey_Community_College_045","Dakota_County_Technical_College_043","Dakota_County_Technical_College_057","Lake_Superior_College_010","Northland_Community_Technical_College_049","Anoka_Ramsey_Community_College_003","Anoka_Ramsey_Community_College_030","Anoka_Technical_College_025",null,null,null,null,"Lake_Superior_College_038",null,"Anoka_Technical_College_011","Dakota_County_Technical_College_040","Anoka_Technical_College_015","Anoka_Ramsey_Community_College_019","Anoka_Technical_College_021","Anoka_Technical_College_041","Anoka_Technical_College_056",null,null,"Hennepin_Technical_College_064","Saint_Paul_College_076","Central_Lakes_College_077",null,"Minneapolis_Community_Technical_College_006","Hennepin_Technical_College_033","Anoka_Ramsey_Community_College_008","Anoka_Technical_College_070","Mesabi_Range_College_073","Dakota_County_Technical_College_017","Minneapolis_Community_Technical_College_058","Anoka_Ramsey_Community_College_071","Central_Lakes_College_018","Institution Not on List (See Narrrative)","Central_Lakes_College_034","Century_College_014","Anoka_Technical_College_022","Minnesota_State_College_Southeast_051"]
[null,null,"Minnesota_West_Community_Technical_College_005","Century_College_004","South_Central_College_054","Riverland_Community_College_023","Fond_du_Lac_Tribal_Community_College_047","Century_College_053",null,null,null,null,null,null,null,"Anoka_Ramsey_Community_College_031","Century_College_048","Century_College_059",null,"Dakota_County_Technical_College_079","Institution Not on List (See Narrrative)","Saint_Paul_College_068","Central_Lakes_College_001",null,"Inver_Hills_Community_College_045","Normandale_Community_College_043","Hennepin_Technical_College_057","North_Hennepin_Community_College_010","Institution Not on List (See Narrrative)","Central_Lakes_College_003","Dakota_County_Technical_College_030","Anoka_Ramsey_Community_College_025",null,null,null,null,"Minnesota_State_College_Southeast_038",null,"Century_College_011","Hennepin_Technical_College_040","Century_College_015","Central_Lakes_College_019","Central_Lakes_College_021","Central_Lakes_College_041","Central_Lakes_College_056",null,null,"Hibbing_Community_College_064","Institution Not on List (See Narrrative)","Century_College_077",null,"Institution Not on List (See Narrrative)","Inver_Hills_Community_College_033","Central_Lakes_College_008","Anoka_Ramsey_Community_College_070","Minneapolis_Community_Technical_College_073","Fond_du_Lac_Tribal_Community_College_017","Minnesota_State_Community_Technical_College_058","Central_Lakes_College_071","Century_College_018",null,"Century_College_034","Fond_du_Lac_Tribal_Community_College_014","Anoka_Ramsey_Community_College_022","Minnesota_State_Community_Technical_College_051"]
["Example: Plant Systems is POS code 053",null,"Northland_Community_Technical_College_005","Hennepin_Technical_College_004","Institution Not on List (See Narrrative)","Institution Not on List (See Narrrative)","Hennepin_Technical_College_047","Hennepin_Technical_College_053",null,null,null,null,null,null,null,"Century_College_031","Hennepin_Technical_College_048","Dakota_County_Technical_College_059",null,"Hennepin_Technical_College_079",null,"Institution Not on List (See Narrrative)","Century_College_001",null,"Minnesota_State_College_Southeast_045","North_Hennepin_Community_College_043","Lake_Superior_College_057","Pine_Technical_Community_College_010",null,"Century_College_003","Inver_Hills_Community_College_030","Central_Lakes_College_025",null,null,null,null,"Saint_Paul_College_038",null,"Dakota_County_Technical_College_011","Hibbing_Community_College_040","Dakota_County_Technical_College_015","Century_College_019","Century_College_021","Century_College_041","Century_College_056",null,null,"Minnesota_North_College_064",null,"Dakota_County_Technical_College_077",null,null,"Lake_Superior_College_033","Century_College_008","Central_Lakes_College_070","Minnesota_State_College_Southeast_073","Hennepin_Technical_College_017","Saint_Paul_College_058","Century_College_071","Hennepin_Technical_College_018",null,"Fond_du_Lac_Tribal_Community_College_034","Hennepin_Technical_College_014","Central_Lakes_College_022","Minnesota_West_Community_Technical_College_051"]
["Anoka_Technical_College_053",null,"Ridgewater_College_005","Minneapolis_Community_Technical_College_004",null,null,"Inver_Hills_Community_College_047","Minnesota_West_Community_Technical_College_053",null,null,null,null,null,null,null,"Dakota_County_Technical_College_031","Hibbing_Community_College_048","Hennepin_Technical_College_059",null,"Lake_Superior_College_079",null,null,"Dakota_County_Technical_College_001",null,"Minnesota_State_Community_Technical_College_045","Ridgewater_College_043","Minnesota_State_College_Southeast_057","Riverland_Community_College_010",null,"Dakota_County_Technical_College_003","Minnesota_State_Community_Technical_College_030","Century_College_025",null,null,null,null,"Institution Not on List (See Narrrative)",null,"Fond_du_Lac_Tribal_Community_College_011","Minneapolis_Community_Technical_College_040","Hennepin_Technical_College_015","Dakota_County_Technical_College_019","Dakota_County_Technical_College_021","Dakota_County_Technical_College_041","Dakota_County_Technical_College_056",null,null,"Minnesota_State_Community_Technical_College_064",null,"Hennepin_Technical_College_077",null,null,"Minneapolis_Community_Technical_College_033","Fond_du_Lac_Tribal_Community_College_008","Century_College_070","Minnesota_State_Community_Technical_College_073","Inver_Hills_Community_College_017","Institution Not on List (See Narrrative)","Dakota_County_Technical_College_071","Inver_Hills_Community_College_018",null,"Hennepin_Technical_College_034","Inver_Hills_Community_College_014","Century_College_022","Northwest_Technical_College_Bemidji_051"]
["Central_Lakes_College_053",null,"Rochester_Community_Technical_College_005","Minnesota_West_Community_Technical_College_004",null,null,"Itasca_Community_College_047","Northland_Community_Technical_College_053",null,null,null,null,null,null,null,"Hennepin_Technical_College_031","Inver_Hills_Community_College_048","Inver_Hills_Community_College_059",null,"Minneapolis_Community_Technical_College_079",null,null,"Hennepin_Technical_College_001",null,"North_Hennepin_Community_College_045","Riverland_Community_College_043","North_Hennepin_Community_College_057","Rochester_Community_Technical_College_010",null,"Hennepin_Technical_College_003","Normandale_Community_College_030","Institution Not on List (See Narrrative)",null,null,null,null,null,null,"Hennepin_Technical_College_011","Minnesota_North_College_040","Lake_Superior_College_015","Hennepin_Technical_College_019","Hennepin_Technical_College_021","Fond_du_Lac_Tribal_Community_College_041","Hennepin_Technical_College_056",null,null,"Ridgewater_College_064",null,"Minneapolis_Community_Technical_College_077",null,null,"Ridgewater_College_033","Hennepin_Technical_College_008","Dakota_County_Technical_College_070","Minnesota_West_Community_Technical_College_073","Itasca_Community_College_017",null,"Fond_du_Lac_Tribal_Community_College_071","Itasca_Community_College_018",null,"Hibbing_Community_College_034","Mesabi_Range_College_014","Hennepin_Technical_College_022","Ridgewater_College_051"]
[null,null,"South_Central_College_005","Northland_Community_Technical_College_004",null,null,"Minneapolis_Community_Technical_College_047","Ridgewater_College_053",null,null,null,null,null,null,null,"Hibbing_Community_College_031","Lake_Superior_College_048","Minneapolis_Community_Technical_College_059",null,"Minnesota_State_College_Southeast_079",null,null,"Inver_Hills_Community_College_001",null,"Northland_Community_Technical_College_045","Saint_Paul_College_043","Northland_Community_Technical_College_057","Saint_Paul_College_010",null,"Inver_Hills_Community_College_003","Northwest_Technical_College_Bemidji_030",null,null,null,null,null,null,null,"Hibbing_Community_College_011","Minnesota_State_Community_Technical_College_040","Minneapolis_Community_Technical_College_015","Hibbing_Community_College_019","Hibbing_Community_College_021","Hennepin_Technical_College_041","Lake_Superior_College_056",null,null,"Saint_Paul_College_064",null,"Minnesota_North_College_077",null,null,"Rochester_Community_Technical_College_033","Hibbing_Community_College_008","Hennepin_Technical_College_070","Normandale_Community_College_073","Mesabi_Range_College_017",null,"Hennepin_Technical_College_071","Lake_Superior_College_018",null,"Inver_Hills_Community_College_034","Minneapolis_Community_Technical_College_014","Inver_Hills_Community_College_022","Riverland_Community_College_051"]
[null,null,"Vermillion_Community_College_005","Ridgewater_College_004",null,null,"Minnesota_North_College_047","Riverland_Community_College_053",null,null,null,null,null,null,null,"Inver_Hills_Community_College_031","Minneapolis_Community_Technical_College_048","Minnesota_State_College_Southeast_059",null,"Minnesota_State_Community_Technical_College_079",null,null,"Itasca_Community_College_001",null,"Northwest_Technical_College_Bemidji_045","South_Central_College_043","Northwest_Technical_College_Bemidji_057","Institution Not on List (See Narrrative)",null,"Lake_Superior_College_003","Riverland_Community_College_030",null,null,null,null,null,null,null,"Inver_Hills_Community_College_011","Northland_Community_Technical_College_040","Minnesota_State_Community_Technical_College_015","Inver_Hills_Community_College_019","Lake_Superior_College_021","Itasca_Community_College_041","Mesabi_Range_College_056",null,null,"South_Central_College_064",null,"Minnesota_State_Community_Technical_College_077",null,null,"Institution Not on List (See Narrrative)","Inver_Hills_Community_College_008","Hibbing_Community_College_027","North_Hennepin_Community_College_073","Minneapolis_Community_Technical_College_017",null,"Inver_Hills_Community_College_071","Mesabi_Range_College_018",null,"Minneapolis_Community_Technical_College_034","Minnesota_North_College_014","Mesabi_Range_College_022","Saint_Paul_College_051"]
[null,null,"Institution Not on List (See Narrrative)","Riverland_Community_College_004",null,null,"Minnesota_State_Community_Technical_College_047","South_Central_College_053",null,null,null,null,null,null,null,"Lake_Superior_College_031","Minnesota_North_College_048","Minnesota_State_Community_Technical_College_059",null,"Minnesota_West_Community_Technical_College_079",null,null,"Lake_Superior_College_001",null,"Ridgewater_College_045","StCloud_Technical_Community_College_043","Institution Not on List (See Narrrative)",null,null,"Mesabi_Range_College_003","Rochester_Community_Technical_College_030",null,null,null,null,null,null,null,"Lake_Superior_College_011","Northwest_Technical_College_Bemidji_040","Northland_Community_Technical_College_015","Itasca_Community_College_019","Mesabi_Range_College_021","Lake_Superior_College_041","Minneapolis_Community_Technical_College_056",null,null,"StCloud_Technical_Community_College_064",null,"North_Hennepin_Community_College_077",null,null,null,"Itasca_Community_College_008","Lake_Superior_College_070","Northland_Community_Technical_College_073","Minnesota_North_College_017",null,"Itasca_Community_College_071","Minnesota_North_College_018",null,"Minnesota_North_College_034","Minnesota_West_Community_Technical_College_014","Minneapolis_Community_Technical_College_022","Institution Not on List (See Narrrative)"]
[null,null,null,"South_Central_College_004",null,null,"North_Hennepin_Community_College_047","Institution Not on List (See Narrrative)",null,null,null,null,null,null,null,"Minneapolis_Community_Technical_College_031","Minnesota_State_Community_Technical_College_048","Minnesota_West_Community_Technical_College_059",null,"North_Hennepin_Community_College_079",null,null,"Mesabi_Range_College_001",null,"StCloud_Technical_Community_College_045","Institution Not on List (See Narrrative)",null,null,null,"Minnesota_North_College_003","Saint_Paul_College_030",null,null,null,null,null,null,null,"Mesabi_Range_College_011","South_Central_College_040","South_Central_College_015","Minnesota_North_College_019","Minneapolis_Community_Technical_College_021","Mesabi_Range_College_041","Minnesota_North_College_056",null,null,"Institution Not on List (See Narrrative)",null,"Ridgewater_College_077",null,null,null,"Lake_Superior_College_008","Minneapolis_Community_Technical_College_070","Northwest_Technical_College_Bemidji_073","Minnesota_State_College_Southeast_017",null,"Mesabi_Range_College_071","Minnesota_State_Community_Technical_College_018",null,"Minnesota_State_College_Southeast_034","Normandale_Community_College_014","Minnesota_North_College_022"]
[null,null,null,"StCloud_Technical_Community_College_004",null,null,"Rochester_Community_Technical_College_047",null,null,null,null,null,null,null,null,"Minnesota_North_College_031","Minnesota_West_Community_Technical_College_048","North_Hennepin_Community_College_059",null,"Ridgewater_College_079",null,null,"Minneapolis_Community_Technical_College_001",null,"Institution Not on List (See Narrrative)",null,null,null,null,"Minnesota_State_College_Southeast_003","Institution Not on List (See Narrrative)",null,null,null,null,null,null,null,"Minnesota_North_College_011","StCloud_Technical_Community_College_040","StCloud_Technical_Community_College_015","Minnesota_State_College_Southeast_019","Minnesota_North_College_021","Minneapolis_Community_Technical_College_041","Minnesota_State_College_Southeast_056",null,null,null,null,"Rochester_Community_Technical_College_077",null,null,null,"Mesabi_Range_College_008","Minnesota_North_College_027","Pine_Technical_Community_College_073","Minnesota_State_Community_Technical_College_017",null,"Minneapolis_Community_Technical_College_071","Minnesota_West_Community_Technical_College_018",null,"Minnesota_State_Community_Technical_College_034","Northwest_Technical_College_Bemidji_014","Minnesota_State_College_Southeast_022"]
[null,null,null,"Institution Not on List (See Narrrative)",null,null,"StCloud_Technical_Community_College_047",null,null,null,null,null,null,null,null,"Minnesota_State_College_Southeast_031","Normandale_Community_College_048","Pine_Technical_Community_College_059",null,"Riverland_Community_College_079",null,null,"Minnesota_North_College_001",null,null,null,null,null,null,"Minnesota_State_Community_Technical_College_003",null,null,null,null,null,null,null,null,"Minnesota_State_College_Southeast_011","Institution Not on List (See Narrrative)","Vermillion_Community_College_015","Minnesota_State_Community_Technical_College_019","Minnesota_State_College_Southeast_021","Minnesota_North_College_041","Minnesota_State_Community_Technical_College_056",null,null,null,null,"Saint_Paul_College_077",null,null,null,"Minneapolis_Community_Technical_College_008","Minnesota_State_College_Southeast_070","Rainy_River_Community_College_073","Minnesota_West_Community_Technical_College_017",null,"Minnesota_North_College_071","Northland_Community_Technical_College_018",null,"Minnesota_West_Community_Technical_College_034","Ridgewater_College_014","Normandale_Community_College_022"]
[null,null,null,null,null,null,"Vermillion_Community_College_047",null,null,null,null,null,null,null,null,"Minnesota_State_Community_Technical_College_031","North_Hennepin_Community_College_048","Ridgewater_College_059",null,"Saint_Paul_College_079",null,null,"Minnesota_State_College_Southeast_001",null,null,null,null,null,null,"Minnesota_West_Community_Technical_College_003",null,null,null,null,null,null,null,null,"Minnesota_State_Community_Technical_College_011",null,"Institution Not on List (See Narrrative)","Normandale_Community_College_019","Minnesota_State_Community_Technical_College_021","Minnesota_State_College_Southeast_041","Minnesota_West_Community_Technical_College_056",null,null,null,null,"South_Central_College_077",null,null,null,"Minnesota_North_College_008","Minnesota_State_Community_Technical_College_070","Ridgewater_College_073","Northwest_Technical_College_Bemidji_017",null,"Minnesota_State_College_Southeast_071","Northwest_Technical_College_Bemidji_018",null,"Normandale_Community_College_034","Rochester_Community_Technical_College_014","North_Hennepin_Community_College_022"]
[null,null,null,null,null,null,"Institution Not on List (See Narrrative)",null,null,null,null,null,null,null,null,"Minnesota_West_Community_Technical_College_031","Northland_Community_Technical_College_048","Riverland_Community_College_059",null,"South_Central_College_079",null,null,"Minnesota_State_Community_Technical_College_001",null,null,null,null,null,null,"Normandale_Community_College_003",null,null,null,null,null,null,null,null,"Minnesota_West_Community_Technical_College_011",null,null,"North_Hennepin_Community_College_019","Minnesota_West_Community_Technical_College_021","Minnesota_State_Community_Technical_College_041","Northland_Community_Technical_College_056",null,null,null,null,"Institution Not on List (See Narrrative)",null,null,null,"Minnesota_State_College_Southeast_008","Minnesota_West_Community_Technical_College_070","Riverland_Community_College_073","Pine_Technical_Community_College_017",null,"Minnesota_State_Community_Technical_College_071","Pine_Technical_Community_College_018",null,"North_Hennepin_Community_College_034","South_Central_College_014","Pine_Technical_Community_College_022"]
[null,null,null,null,null,null,null,null,null,null,null,null,null,null,null,"Normandale_Community_College_031","Northwest_Technical_College_Bemidji_048","Rochester_Community_Technical_College_059",null,"Institution Not on List (See Narrrative)",null,null,"Minnesota_West_Community_Technical_College_001",null,null,null,null,null,null,"North_Hennepin_Community_College_003",null,null,null,null,null,null,null,null,"North_Hennepin_Community_College_011",null,null,"Rochester_Community_Technical_College_019","Northland_Community_Technical_College_021","Minnesota_West_Community_Technical_College_041","Northwest_Technical_College_Bemidji_056",null,null,null,null,null,null,null,null,"Minnesota_State_Community_Technical_College_008","Northland_Community_Technical_College_070","Rochester_Community_Technical_College_073","Rochester_Community_Technical_College_017",null,"Minnesota_West_Community_Technical_College_071","Ridgewater_College_018",null,"Northland_Community_Technical_College_034","StCloud_Technical_Community_College_014","Riverland_Community_College_022"]
[null,null,null,null,null,null,null,null,null,null,null,null,null,null,null,"North_Hennepin_Community_College_031","Pine_Technical_Community_College_048","Saint_Paul_College_059",null,null,null,null,"Normandale_Community_College_001",null,null,null,null,null,null,"Northland_Community_Technical_College_003",null,null,null,null,null,null,null,null,"Northland_Community_Technical_College_011",null,null,"Saint_Paul_College_019","Northwest_Technical_College_Bemidji_021","Normandale_Community_College_041","Pine_Technical_Community_College_056",null,null,null,null,null,null,null,null,"Minnesota_West_Community_Technical_College_008","Northwest_Technical_College_Bemidji_070","Saint_Paul_College_073","Saint_Paul_College_017",null,"Normandale_Community_College_071","Riverland_Community_College_018",null,"Ridgewater_College_034","Institution Not on List (See Narrrative)","Rochester_Community_Technical_College_022"]
[null,null,null,null,null,null,null,null,null,null,null,null,null,null,null,"Northwest_Technical_College_Bemidji_031","Riverland_Community_College_048","StCloud_Technical_Community_College_059",null,null,null,null,"North_Hennepin_Community_College_001",null,null,null,null,null,null,"Northwest_Technical_College_Bemidji_003",null,null,null,null,null,null,null,null,"Northwest_Technical_College_Bemidji_011",null,null,"South_Central_College_019","Pine_Technical_Community_College_021","Northland_Community_Technical_College_041","Ridgewater_College_056",null,null,null,null,null,null,null,null,"Normandale_Community_College_008","Ridgewater_College_070","South_Central_College_073","South_Central_College_017",null,"North_Hennepin_Community_College_071","Rochester_Community_Technical_College_018",null,"Riverland_Community_College_034",null,"South_Central_College_022"]
[null,null,null,null,null,null,null,null,null,null,null,null,null,null,null,"Pine_Technical_Community_College_031","Rochester_Community_Technical_College_048","Institution Not on List (See Narrrative)",null,null,null,null,"Northland_Community_Technical_College_001",null,null,null,null,null,null,"Ridgewater_College_003",null,null,null,null,null,null,null,null,"Pine_Technical_Community_College_011",null,null,"StCloud_Technical_Community_College_019","Ridgewater_College_021","Northwest_Technical_College_Bemidji_041","Riverland_Community_College_056",null,null,null,null,null,null,null,null,"North_Hennepin_Community_College_008","Riverland_Community_College_070","StCloud_Technical_Community_College_073","Institution Not on List (See Narrrative)",null,"Northland_Community_Technical_College_071","South_Central_College_018",null,"Rochester_Community_Technical_College_034",null,"StCloud_Technical_Community_College_022"]
[null,null,null,null,null,null,null,null,null,null,null,null,null,null,null,"Ridgewater_College_031","Saint_Paul_College_048",null,null,null,null,null,"Northwest_Technical_College_Bemidji_001",null,null,null,null,null,null,"Riverland_Community_College_003",null,null,null,null,null,null,null,null,"Ridgewater_College_011",null,null,"Institution Not on List (See Narrrative)","Riverland_Community_College_021","Pine_Technical_Community_College_041","Rochester_Community_Technical_College_056",null,null,null,null,null,null,null,null,"Northland_Community_Technical_College_008","Rochester_Community_Technical_College_070","Vermillion_Community_College_073",null,null,"Ridgewater_College_071","StCloud_Technical_Community_College_018",null,"Saint_Paul_College_034",null,"Institution Not on List (See Narrrative)"]
[null,null,null,null,null,null,null,null,null,null,null,null,null,null,null,"Riverland_Community_College_031","South_Central_College_048",null,null,null,null,null,"Pine_Technical_Community_College_001",null,null,null,null,null,null,"Rochester_Community_Technical_College_003",null,null,null,null,null,null,null,null,"Riverland_Community_College_011",null,null,null,"Rochester_Community_Technical_College_021","Ridgewater_College_041","Saint_Paul_College_056",null,null,null,null,null,null,null,null,"Northwest_Technical_College_Bemidji_008","Saint_Paul_College_070","Institution Not on List (See Narrrative)",null,null,"Riverland_Community_College_071","Vermillion_Community_College_018",null,"Vermillion_Community_College_034"]
[null,null,null,null,null,null,null,null,null,null,null,null,null,null,null,"Rochester_Community_Technical_College_031","Institution Not on List (See Narrrative)",null,null,null,null,null,"Ridgewater_College_001",null,null,null,null,null,null,"Saint_Paul_College_003",null,null,null,null,null,null,null,null,"Rochester_Community_Technical_College_011",null,null,null,"Saint_Paul_College_021","Riverland_Community_College_041","South_Central_College_056",null,null,null,null,null,null,null,null,"Pine_Technical_Community_College_008","South_Central_College_070",null,null,null,"Rochester_Community_Technical_College_071","Institution Not on List (See Narrrative)",null,"Institution Not on List (See Narrrative)"]
[null,null,null,null,null,null,null,null,null,null,null,null,null,null,null,"Saint_Paul_College_031",null,null,null,null,null,null,"Riverland_Community_College_001",null,null,null,null,null,null,"South_Central_College_003",null,null,null,null,null,null,null,null,"Saint_Paul_College_011",null,null,null,"South_Central_College_021","Rochester_Community_Technical_College_041","StCloud_Technical_Community_College_056",null,null,null,null,null,null,null,null,"Rainy_River_Community_College_008","StCloud_Technical_Community_College_027",null,null,null,"Saint_Paul_College_071"]
[null,null,null,null,null,null,null,null,null,null,null,null,null,null,null,"South_Central_College_031",null,null,null,null,null,null,"Rochester_Community_Technical_College_001",null,null,null,null,null,null,"StCloud_Technical_Community_College_003",null,null,null,null,null,null,null,null,"South_Central_College_011",null,null,null,"StCloud_Technical_Community_College_021","Saint_Paul_College_041","Institution Not on List (See Narrrative)",null,null,null,null,null,null,null,null,"Ridgewater_College_008","Institution Not on List (See Narrrative)",null,null,null,"South_Central_College_071"]
[null,null,null,null,null,null,null,null,null,null,null,null,null,null,null,"StCloud_Technical_Community_College_031",null,null,null,null,null,null,"Saint_Paul_College_001",null,null,null,null,null,null,"Institution Not on List (See Narrrative)",null,null,null,null,null,null,null,null,"StCloud_Technical_Community_College_011",null,null,null,"Institution Not on List (See Narrrative)","South_Central_College_041",null,null,null,null,null,null,null,null,null,"Riverland_Community_College_008",null,null,null,null,"StCloud_Technical_Community_College_071"]
[null,null,null,null,null,null,null,null,null,null,null,null,null,null,null,"Institution Not on List (See Narrrative)",null,null,null,null,null,null,"South_Central_College_001",null,null,null,null,null,null,null,null,null,null,null,null,null,null,null,"Institution Not on List (See Narrrative)",null,null,null,null,"StCloud_Technical_Community_College_041",null,null,null,null,null,null,null,null,null,"Rochester_Community_Technical_College_008",null,null,null,null,"Vermillion_Community_College_071"]
[null,null,null,null,null,null,null,null,null,null,null,null,null,null,null,null,null,null,null,null,null,null,"StCloud_Technical_Community_College_001",null,null,null,null,null,null,null,null,null,null,null,null,null,null,null,null,null,null,null,null,"Institution Not on List (See Narrrative)",null,null,null,null,null,null,null,null,null,"Saint_Paul_College_008",null,null,null,null,"Institution Not on List (See Narrrative)"]
[null,null,null,null,null,null,null,null,null,null,null,null,null,null,null,null,null,null,null,null,null,null,"Institution Not on List (See Narrrative)",null,null,null,null,null,null,null,null,null,null,null,null,null,null,null,null,null,null,null,null,null,null,null,null,null,null,null,null,null,null,"South_Central_College_008"]
[null,null,null,null,null,null,null,null,null,null,null,null,null,null,null,null,null,null,null,null,null,null,null,null,null,null,null,null,null,null,null,null,null,null,null,null,null,null,null,null,null,null,null,null,null,null,null,null,null,null,null,null,null,"StCloud_Technical_Community_College_008"]
[null,null,null,null,null,null,null,null,null,null,null,null,null,null,null,null,null,null,null,null,null,null,null,null,null,null,null,null,null,null,null,null,null,null,null,null,null,null,null,null,null,null,null,null,null,null,null,null,null,null,null,null,null,"Institution Not on List (See Narrrative)"]
[]
[]
[]
[]
[null,null,"Animal_Systems","Animal_Systems","Animal_Systems","Animal_Systems","Animal_Systems","Animal_Systems","Animal_Systems","Agribusiness","Agribusiness","Agribusiness","Agribusiness","Agribusiness","Agribusiness","Agribusiness","Agribusiness","Agribusiness","Agribusiness","Agribusiness","Agricultural_Technology_Automation","Agricultural_Technology_Automation","Agricultural_Technology_Automation","Food_Science_Processing","Food_Science_Processing","Food_Science_Processing","Water_Systems","Water_Systems","Water_Systems","Water_Systems","Water_Systems","Water_Systems","Water_Systems","Water_Systems","Water_Systems","Water_Systems","Water_Systems","Water_Systems","Plant_Systems","Plant_Systems","Plant_Systems","Plant_Systems","Plant_Systems","Plant_Systems","Plant_Systems","Plant_Systems","Plant_Systems","Lighting_Sound_Technology","Lighting_Sound_Technology","Media_Production_Broadcasting","Media_Production_Broadcasting","Media_Production_Broadcasting","Media_Production_Broadcasting","Media_Production_Broadcasting","Media_Production_Broadcasting","Media_Production_Broadcasting","Design_Digital_Arts","Design_Digital_Arts","Design_Digital_Arts","Design_Digital_Arts","Design_Digital_Arts","Design_Digital_Arts","Design_Digital_Arts","Design_Digital_Arts","Design_Digital_Arts","Design_Digital_Arts","Design_Digital_Arts","Design_Digital_Arts","IT_Support_Services","IT_Support_Services","IT_Support_Services","IT_Support_Services","IT_Support_Services","IT_Support_Services","IT_Support_Services","IT_Support_Services","IT_Support_Services","IT_Support_Services","IT_Support_Services","IT_Support_Services","IT_Support_Services","IT_Support_Services","IT_Support_Services","IT_Support_Services","IT_Support_Services","IT_Support_Services","IT_Support_Services","IT_Support_Services","IT_Support_Services","IT_Support_Services","IT_Support_Services","Network_Systems_Cybersecurity","Network_Systems_Cybersecurity","Network_Systems_Cybersecurity","Network_Systems_Cybersecurity","Network_Systems_Cybersecurity","Network_Systems_Cybersecurity","Network_Systems_Cybersecurity","Network_Systems_Cybersecurity","Network_Systems_Cybersecurity","Network_Systems_Cybersecurity","Network_Systems_Cybersecurity","Network_Systems_Cybersecurity","Network_Systems_Cybersecurity","Network_Systems_Cybersecurity","Network_Systems_Cybersecurity","Network_Systems_Cybersecurity","Network_Systems_Cybersecurity","Network_Systems_Cybersecurity","Network_Systems_Cybersecurity","Software_Solutions","Software_Solutions","Software_Solutions","Software_Solutions","Software_Solutions","Software_Solutions","Software_Solutions","Software_Solutions","Software_Solutions","Software_Solutions","Software_Solutions","Software_Solutions","Software_Solutions","Software_Solutions","Software_Solutions","Software_Solutions","Software_Solutions","Web_Cloud","Web_Cloud","Web_Cloud","Web_Cloud","Web_Cloud","Web_Cloud","Web_Cloud","Web_Cloud","Web_Cloud","Web_Cloud","Web_Cloud","Web_Cloud","Web_Cloud","Web_Cloud","Banking_Credit","Banking_Credit","Financial_Strategy_Investments","Financial_Strategy_Investments","Financial_Strategy_Investments","Accounting","Accounting","Accounting","Accounting","Accounting","Accounting","Accounting","Accounting","Accounting","Accounting","Accounting","Accounting","Accounting","Accounting","Accounting","Accounting","Accounting","Accounting","Accounting","Accounting","Accounting","Accounting","Accounting","Accounting","Accounting","Retail_Customer_Experience","Retail_Customer_Experience","Retail_Customer_Experience","Retail_Customer_Experience","Retail_Customer_Experience","Retail_Customer_Experience","Retail_Customer_Experience","Retail_Customer_Experience","Retail_Customer_Experience","Retail_Customer_Experience","Marketing_Advertising","Marketing_Advertising","Marketing_Advertising","Marketing_Advertising","Marketing_Advertising","Marketing_Advertising","Marketing_Advertising","Marketing_Advertising","Marketing_Advertising","Strategic_Sales","Strategic_Sales","Strategic_Sales","Strategic_Sales","Strategic_Sales","Strategic_Sales","Strategic_Sales","Strategic_Sales","Leadership_Operations","Leadership_Operations","Leadership_Operations","Leadership_Operations","Leadership_Operations","Leadership_Operations","Leadership_Operations","Leadership_Operations","Leadership_Operations","Leadership_Operations","Leadership_Operations","Leadership_Operations","Leadership_Operations","Leadership_Operations","Leadership_Operations","Leadership_Operations","Leadership_Operations","Leadership_Operations","Leadership_Operations","Leadership_Operations","Leadership_Operations","Leadership_Operations","Entrepreneurship_Small_Business","Entrepreneurship_Small_Business","Project_Management","Project_Management","Project_Management","Project_Management","Project_Management","Project_Management","Project_Management","Project_Management","Project_Management","Regulation","Regulation","Regulation","Regulation","Regulation","Regulation","Regulation","Regulation","Regulation","Regulation","Regulation","Regulation","Regulation","Regulation","Regulation","Regulation","Regulation","Regulation","Regulation","Regulation","Regulation","Regulation","Regulation","Regulation","Regulation","Regulation","Regulation","Regulation","Regulation","Culinary_Food_Services","Culinary_Food_Services","Culinary_Food_Services","Culinary_Food_Services","Culinary_Food_Services","Culinary_Food_Services","Culinary_Food_Services","Culinary_Food_Services","Travel_Leisure","Travel_Leisure","Industrial_Machinery","Industrial_Machinery","Industrial_Machinery","Industrial_Machinery","Industrial_Machinery","Industrial_Machinery","Industrial_Machinery","Industrial_Machinery","Industrial_Machinery","Industrial_Machinery","Industrial_Machinery","Industrial_Machinery","Industrial_Machinery","Industrial_Machinery","Industrial_Machinery","Industrial_Machinery","Industrial_Machinery","Industrial_Machinery","Industrial_Machinery","Industrial_Machinery","Industrial_Machinery","Industrial_Machinery","Planning_Logistics","Planning_Logistics","Planning_Logistics","Planning_Logistics","Architecture_Civil_Engineering","Architecture_Civil_Engineering","Architecture_Civil_Engineering","Architecture_Civil_Engineering","Architecture_Civil_Engineering","Architecture_Civil_Engineering","Architecture_Civil_Engineering","Architecture_Civil_Engineering","Architecture_Civil_Engineering","Architecture_Civil_Engineering","Architecture_Civil_Engineering","Architecture_Civil_Engineering","Architecture_Civil_Engineering","Architecture_Civil_Engineering","Architecture_Civil_Engineering","Architecture_Civil_Engineering","Architecture_Civil_Engineering","Architecture_Civil_Engineering","Architecture_Civil_Engineering","Architecture_Civil_Engineering","Architecture_Civil_Engineering","Architecture_Civil_Engineering","Architecture_Civil_Engineering","Skilled_Trades","Skilled_Trades","Skilled_Trades","Skilled_Trades","Skilled_Trades","Skilled_Trades","Skilled_Trades","Skilled_Trades","Skilled_Trades","Skilled_Trades","Skilled_Trades","Skilled_Trades","Equipment_Operations_Maintenance","Equipment_Operations_Maintenance","Equipment_Operations_Maintenance","Equipment_Operations_Maintenance","Equipment_Operations_Maintenance","Equipment_Operations_Maintenance","Equipment_Operations_Maintenance","Equipment_Operations_Maintenance","Equipment_Operations_Maintenance","Equipment_Operations_Maintenance","Maintenance_Repair","Maintenance_Repair","Maintenance_Repair","Maintenance_Repair","Maintenance_Repair","Maintenance_Repair","Maintenance_Repair","Maintenance_Repair","Maintenance_Repair","Maintenance_Repair","Maintenance_Repair","Maintenance_Repair","Maintenance_Repair","Maintenance_Repair","Maintenance_Repair","Maintenance_Repair","Maintenance_Repair","Maintenance_Repair","Maintenance_Repair","Maintenance_Repair","Maintenance_Repair","Robotics","Robotics","Robotics","Robotics","Robotics","Robotics","Robotics","Robotics","Robotics","Robotics","Robotics","Robotics","Robotics","Robotics","Robotics","Robotics","Robotics","Robotics","Robotics","Robotics","Robotics","Robotics","Robotics","Robotics","Production_Automation","Production_Automation","Production_Automation","Production_Automation","Production_Automation","Production_Automation","Production_Automation","Production_Automation","Production_Automation","Production_Automation","Production_Automation","Production_Automation","Production_Automation","Engineering","Engineering","Engineering","Engineering","Engineering","Engineering","Engineering","Engineering","Engineering","Engineering","Engineering","Engineering","Engineering","Engineering","Engineering","Engineering","Engineering","Biotechnology_Research_Development","Biotechnology_Research_Development","Biotechnology_Research_Development","Biotechnology_Research_Development","Biotechnology_Research_Development","Biotechnology_Research_Development","Biotechnology_Research_Development","Biotechnology_Research_Development","Biotechnology_Research_Development","Biotechnology_Research_Development","Biotechnology_Research_Development","Biotechnology_Research_Development","Biotechnology_Research_Development","Biotechnology_Research_Development","Biotechnology_Research_Development","Biotechnology_Research_Development","Biotechnology_Research_Development","Biotechnology_Research_Development","Biotechnology_Research_Development","Biotechnology_Research_Development","Biotechnology_Research_Development","Biotechnology_Research_Development","Biotechnology_Research_Development","Biotechnology_Research_Development","Biotechnology_Research_Development","Biotechnology_Research_Development","Biotechnology_Research_Development",null,null,null,null,null,null,null,null,null,null,null,null,null,null,null,null,null,"Health_Data_Administration","Health_Data_Administration","Health_Data_Administration","Health_Data_Administration","Health_Data_Administration","Health_Data_Administration","Health_Data_Administration","Health_Data_Administration","Health_Data_Administration","Health_Data_Administration","Health_Data_Administration","Health_Data_Administration","Health_Data_Administration","Health_Data_Administration","Health_Data_Administration","Health_Data_Administration","Health_Data_Administration","Health_Data_Administration","Health_Data_Administration","Health_Data_Administration","Health_Data_Administration","Health_Data_Administration","Health_Data_Administration","Health_Data_Administration","Health_Data_Administration","Health_Data_Administration","Health_Data_Administration","Health_Data_Administration","Health_Data_Administration","Health_Data_Administration","Health_Data_Administration","Health_Data_Administration","Health_Data_Administration","Physical_Health","Physical_Health","Physical_Health","Physical_Health","Physical_Health","Physical_Health","Physical_Health","Physical_Health","Physical_Health","Physical_Health","Physical_Health","Physical_Health","Physical_Health","Physical_Health","Physical_Health","Physical_Health","Physical_Health","Physical_Health","Physical_Health","Learner_Support_Community_Engagement","Learner_Support_Community_Engagement","Learner_Support_Community_Engagement","Learner_Support_Community_Engagement","Teaching_Training_Facilitation","Teaching_Training_Facilitation","Teaching_Training_Facilitation","Teaching_Training_Facilitation","Teaching_Training_Facilitation","Teaching_Training_Facilitation","Teaching_Training_Facilitation","Teaching_Training_Facilitation","Teaching_Training_Facilitation","Teaching_Training_Facilitation","Teaching_Training_Facilitation","Teaching_Training_Facilitation","Teaching_Training_Facilitation","Teaching_Training_Facilitation","Teaching_Training_Facilitation","Teaching_Training_Facilitation","Teaching_Training_Facilitation","Teaching_Training_Facilitation","Teaching_Training_Facilitation","Teaching_Training_Facilitation","Teaching_Training_Facilitation","Teaching_Training_Facilitation","Teaching_Training_Facilitation","Teaching_Training_Facilitation","Military_National_Security","Public_Safety","Public_Safety","Public_Safety","Public_Safety","Public_Safety","Public_Safety","Public_Safety","Public_Safety","Public_Safety","Public_Safety","Public_Safety","Public_Safety","Public_Safety","Public_Safety","Public_Safety","Public_Safety","Public_Safety","Public_Safety","Public_Safety","Emergency_Response","Emergency_Response","Emergency_Response","Emergency_Response","Emergency_Response","Emergency_Response","Emergency_Response","Emergency_Response","Emergency_Response","Emergency_Response","Emergency_Response","Emergency_Response","Emergency_Response","Emergency_Response","Emergency_Response","Emergency_Response","Emergency_Response","Emergency_Response","Emergency_Response","Behavioral_Mental_Health","Behavioral_Mental_Health","Behavioral_Mental_Health","Behavioral_Mental_Health","Behavioral_Mental_Health","Behavioral_Mental_Health","Behavioral_Mental_Health","Behavioral_Mental_Health","Behavioral_Mental_Health","Behavioral_Mental_Health","Behavioral_Mental_Health","Behavioral_Mental_Health","Behavioral_Mental_Health","Behavioral_Mental_Health","Behavioral_Mental_Health","Community_Social_Services","Community_Social_Services","Community_Social_Services","Community_Social_Services","Community_Social_Services","Community_Social_Services","Community_Social_Services","Community_Social_Services","Community_Social_Services","Community_Social_Services","Community_Social_Services","Community_Social_Services","Community_Social_Services","Community_Social_Services","Community_Social_Services","Community_Social_Services","Community_Social_Services","Community_Social_Services","Personal_Care_Services","Personal_Care_Services","Personal_Care_Services","Personal_Care_Services","Personal_Care_Services","Personal_Care_Services","Personal_Care_Services","Personal_Care_Services"]
["These are College Name (PW#) from above",null,"Dakota_County_Technical_College_005","Minnesota_West_Community_Technical_College_005","Northland_Community_Technical_College_005","Ridgewater_College_005","Rochester_Community_Technical_College_005","South_Central_College_005","Vermillion_Community_College_005","Alexandria_Technical_Community_College_004","Central_Lakes_College_004","Century_College_004","Hennepin_Technical_College_004","Minneapolis_Community_Technical_College_004","Minnesota_West_Community_Technical_College_004","Northland_Community_Technical_College_004","Ridgewater_College_004","Riverland_Community_College_004","South_Central_College_004","StCloud_Technical_Community_College_004","Northland_Community_Technical_College_054","Ridgewater_College_054","South_Central_College_054","Dakota_County_Technical_College_023","Minnesota_West_Community_Technical_College_023","Riverland_Community_College_023","Anoka_Ramsey_Community_College_047","Central_Lakes_College_047","Fond_du_Lac_Tribal_Community_College_047","Hennepin_Technical_College_047","Inver_Hills_Community_College_047","Itasca_Community_College_047","Minneapolis_Community_Technical_College_047","Minnesota_State_Community_Technical_College_047","North_Hennepin_Community_College_047","Rochester_Community_Technical_College_047","StCloud_Technical_Community_College_047","Vermillion_Community_College_047","Anoka_Technical_College_053","Central_Lakes_College_053","Century_College_053","Hennepin_Technical_College_053","Minnesota_West_Community_Technical_College_053","Northland_Community_Technical_College_053","Ridgewater_College_053","Riverland_Community_College_053","South_Central_College_053","Century_College_006","Minneapolis_Community_Technical_College_006","Fond_du_Lac_Tribal_Community_College_033","Hennepin_Technical_College_033","Inver_Hills_Community_College_033","Lake_Superior_College_033","Minneapolis_Community_Technical_College_033","Ridgewater_College_033","Rochester_Community_Technical_College_033","Alexandria_Technical_Community_College_077","Central_Lakes_College_077","Century_College_077","Dakota_County_Technical_College_077","Hennepin_Technical_College_077","Minneapolis_Community_Technical_College_077","Minnesota_State_Community_Technical_College_077","North_Hennepin_Community_College_077","Ridgewater_College_077","Rochester_Community_Technical_College_077","Saint_Paul_College_077","South_Central_College_077","Alexandria_Technical_Community_College_031","Anoka_Technical_College_031","Anoka_Ramsey_Community_College_031","Century_College_031","Dakota_County_Technical_College_031","Hennepin_Technical_College_031","Hibbing_Community_College_031","Inver_Hills_Community_College_031","Lake_Superior_College_031","Minneapolis_Community_Technical_College_031","Minnesota_State_College_Southeast_031","Minnesota_State_Community_Technical_College_031","Minnesota_West_Community_Technical_College_031","Normandale_Community_College_031","North_Hennepin_Community_College_031","Northwest_Technical_College_Bemidji_031","Pine_Technical_Community_College_031","Ridgewater_College_031","Riverland_Community_College_031","Rochester_Community_Technical_College_031","Saint_Paul_College_031","South_Central_College_031","StCloud_Technical_Community_College_031","Alexandria_Technical_Community_College_048","Anoka_Ramsey_Community_College_048","Century_College_048","Hennepin_Technical_College_048","Hibbing_Community_College_048","Inver_Hills_Community_College_048","Lake_Superior_College_048","Minneapolis_Community_Technical_College_048","Minnesota_State_Community_Technical_College_048","Minnesota_West_Community_Technical_College_048","Normandale_Community_College_048","North_Hennepin_Community_College_048","Northland_Community_Technical_College_048","Northwest_Technical_College_Bemidji_048","Pine_Technical_Community_College_048","Riverland_Community_College_048","Rochester_Community_Technical_College_048","Saint_Paul_College_048","South_Central_College_048","Anoka_Technical_College_059","Anoka_Ramsey_Community_College_059","Century_College_059","Dakota_County_Technical_College_059","Hennepin_Technical_College_059","Inver_Hills_Community_College_059","Minneapolis_Community_Technical_College_059","Minnesota_State_College_Southeast_059","Minnesota_State_Community_Technical_College_059","Minnesota_West_Community_Technical_College_059","North_Hennepin_Community_College_059","Pine_Technical_Community_College_059","Ridgewater_College_059","Riverland_Community_College_059","Rochester_Community_Technical_College_059","Saint_Paul_College_059","StCloud_Technical_Community_College_059","Anoka_Technical_College_079","Century_College_079","Dakota_County_Technical_College_079","Hennepin_Technical_College_079","Lake_Superior_College_079","Minneapolis_Community_Technical_College_079","Minnesota_State_College_Southeast_079","Minnesota_State_Community_Technical_College_079","Minnesota_West_Community_Technical_College_079","North_Hennepin_Community_College_079","Ridgewater_College_079","Riverland_Community_College_079","Saint_Paul_College_079","South_Central_College_079","North_Hennepin_Community_College_007","StCloud_Technical_Community_College_007","Fond_du_Lac_Tribal_Community_College_068","North_Hennepin_Community_College_068","Saint_Paul_College_068","Alexandria_Technical_Community_College_001","Anoka_Ramsey_Community_College_001","Central_Lakes_College_001","Century_College_001","Dakota_County_Technical_College_001","Hennepin_Technical_College_001","Inver_Hills_Community_College_001","Itasca_Community_College_001","Lake_Superior_College_001","Mesabi_Range_College_001","Minneapolis_Community_Technical_College_001","Minnesota_State_College_Southeast_001","Minnesota_State_Community_Technical_College_001","Minnesota_West_Community_Technical_College_001","Normandale_Community_College_001","North_Hennepin_Community_College_001","Northland_Community_Technical_College_001","Northwest_Technical_College_Bemidji_001","Pine_Technical_Community_College_001","Ridgewater_College_001","Riverland_Community_College_001","Rochester_Community_Technical_College_001","Saint_Paul_College_001","South_Central_College_001","StCloud_Technical_Community_College_001","Alexandria_Technical_Community_College_045","Anoka_Ramsey_Community_College_045","Inver_Hills_Community_College_045","Minnesota_State_College_Southeast_045","Minnesota_State_Community_Technical_College_045","North_Hennepin_Community_College_045","Northland_Community_Technical_College_045","Northwest_Technical_College_Bemidji_045","Ridgewater_College_045","StCloud_Technical_Community_College_045","Century_College_043","Dakota_County_Technical_College_043","Normandale_Community_College_043","North_Hennepin_Community_College_043","Ridgewater_College_043","Riverland_Community_College_043","Saint_Paul_College_043","South_Central_College_043","StCloud_Technical_Community_College_043","Century_College_057","Dakota_County_Technical_College_057","Hennepin_Technical_College_057","Lake_Superior_College_057","Minnesota_State_College_Southeast_057","North_Hennepin_Community_College_057","Northland_Community_Technical_College_057","Northwest_Technical_College_Bemidji_057","Anoka_Technical_College_003","Anoka_Ramsey_Community_College_003","Central_Lakes_College_003","Century_College_003","Dakota_County_Technical_College_003","Hennepin_Technical_College_003","Inver_Hills_Community_College_003","Lake_Superior_College_003","Mesabi_Range_College_003","Minnesota_State_College_Southeast_003","Minnesota_State_Community_Technical_College_003","Minnesota_West_Community_Technical_College_003","Normandale_Community_College_003","North_Hennepin_Community_College_003","Northland_Community_Technical_College_003","Northwest_Technical_College_Bemidji_003","Ridgewater_College_003","Riverland_Community_College_003","Rochester_Community_Technical_College_003","Saint_Paul_College_003","South_Central_College_003","StCloud_Technical_Community_College_003","Dakota_County_Technical_College_049","Northland_Community_Technical_College_049","Anoka_Ramsey_Community_College_030","Dakota_County_Technical_College_030","Inver_Hills_Community_College_030","Minnesota_State_Community_Technical_College_030","Normandale_Community_College_030","Northwest_Technical_College_Bemidji_030","Riverland_Community_College_030","Rochester_Community_Technical_College_030","Saint_Paul_College_030","Alexandria_Technical_Community_College_025","Anoka_Technical_College_025","Anoka_Ramsey_Community_College_025","Central_Lakes_College_025","Century_College_025","Dakota_County_Technical_College_025","Fond_du_Lac_Tribal_Community_College_025","Hennepin_Technical_College_025","Hibbing_Community_College_025","Inver_Hills_Community_College_025","Itasca_Community_College_025","Lake_Superior_College_025","Mesabi_Range_College_025","Minneapolis_Community_Technical_College_025","Minnesota_State_College_Southeast_025","Minnesota_State_Community_Technical_College_025","Minnesota_West_Community_Technical_College_025","Normandale_Community_College_025","North_Hennepin_Community_College_025","Northland_Community_Technical_College_025","Northwest_Technical_College_Bemidji_025","Pine_Technical_Community_College_025","Ridgewater_College_025","Riverland_Community_College_025","Rochester_Community_Technical_College_025","Saint_Paul_College_025","South_Central_College_025","StCloud_Technical_Community_College_025","Vermillion_Community_College_025","Central_Lakes_College_064","Hennepin_Technical_College_064","Hibbing_Community_College_064","Minnesota_State_Community_Technical_College_064","Ridgewater_College_064","Saint_Paul_College_064","South_Central_College_064","StCloud_Technical_Community_College_064","Normandale_Community_College_076","Saint_Paul_College_076","Alexandria_Technical_Community_College_021","Anoka_Technical_College_021","Central_Lakes_College_021","Century_College_021","Dakota_County_Technical_College_021","Hennepin_Technical_College_021","Hibbing_Community_College_021","Lake_Superior_College_021","Mesabi_Range_College_021","Minneapolis_Community_Technical_College_021","Minnesota_State_College_Southeast_021","Minnesota_State_Community_Technical_College_021","Minnesota_West_Community_Technical_College_021","Northland_Community_Technical_College_021","Northwest_Technical_College_Bemidji_021","Pine_Technical_Community_College_021","Ridgewater_College_021","Riverland_Community_College_021","Rochester_Community_Technical_College_021","Saint_Paul_College_021","South_Central_College_021","StCloud_Technical_Community_College_021","Dakota_County_Technical_College_038","Lake_Superior_College_038","Minnesota_State_College_Southeast_038","Saint_Paul_College_038","Alexandria_Technical_Community_College_011","Anoka_Technical_College_011","Century_College_011","Dakota_County_Technical_College_011","Fond_du_Lac_Tribal_Community_College_011","Hennepin_Technical_College_011","Hibbing_Community_College_011","Inver_Hills_Community_College_011","Lake_Superior_College_011","Mesabi_Range_College_011","Minnesota_State_College_Southeast_011","Minnesota_State_Community_Technical_College_011","Minnesota_West_Community_Technical_College_011","North_Hennepin_Community_College_011","Northland_Community_Technical_College_011","Northwest_Technical_College_Bemidji_011","Pine_Technical_Community_College_011","Ridgewater_College_011","Riverland_Community_College_011","Rochester_Community_Technical_College_011","Saint_Paul_College_011","South_Central_College_011","StCloud_Technical_Community_College_011","Alexandria_Technical_Community_College_015","Anoka_Technical_College_015","Century_College_015","Dakota_County_Technical_College_015","Hennepin_Technical_College_015","Lake_Superior_College_015","Minneapolis_Community_Technical_College_015","Minnesota_State_Community_Technical_College_015","Northland_Community_Technical_College_015","South_Central_College_015","StCloud_Technical_Community_College_015","Vermillion_Community_College_015","Century_College_040","Dakota_County_Technical_College_040","Hennepin_Technical_College_040","Hibbing_Community_College_040","Minneapolis_Community_Technical_College_040","Minnesota_State_Community_Technical_College_040","Northland_Community_Technical_College_040","Northwest_Technical_College_Bemidji_040","South_Central_College_040","StCloud_Technical_Community_College_040","Alexandria_Technical_Community_College_056","Anoka_Technical_College_056","Central_Lakes_College_056","Century_College_056","Dakota_County_Technical_College_056","Hennepin_Technical_College_056","Lake_Superior_College_056","Mesabi_Range_College_056","Minneapolis_Community_Technical_College_056","Minnesota_State_College_Southeast_056","Minnesota_State_Community_Technical_College_056","Minnesota_West_Community_Technical_College_056","Northland_Community_Technical_College_056","Northwest_Technical_College_Bemidji_056","Pine_Technical_Community_College_056","Ridgewater_College_056","Riverland_Community_College_056","Rochester_Community_Technical_College_056","Saint_Paul_College_056","South_Central_College_056","StCloud_Technical_Community_College_056","Alexandria_Technical_Community_College_041","Anoka_Technical_College_041","Central_Lakes_College_041","Century_College_041","Dakota_County_Technical_College_041","Fond_du_Lac_Tribal_Community_College_041","Hennepin_Technical_College_041","Itasca_Community_College_041","Lake_Superior_College_041","Mesabi_Range_College_041","Minneapolis_Community_Technical_College_041","Minnesota_State_College_Southeast_041","Minnesota_State_Community_Technical_College_041","Minnesota_West_Community_Technical_College_041","Normandale_Community_College_041","Northland_Community_Technical_College_041","Northwest_Technical_College_Bemidji_041","Pine_Technical_Community_College_041","Ridgewater_College_041","Riverland_Community_College_041","Rochester_Community_Technical_College_041","Saint_Paul_College_041","South_Central_College_041","StCloud_Technical_Community_College_041","Anoka_Technical_College_039","Anoka_Ramsey_Community_College_039","Dakota_County_Technical_College_039","Hennepin_Technical_College_039","Hibbing_Community_College_039","Lake_Superior_College_039","Mesabi_Range_College_039","Minnesota_State_College_Southeast_039","Minnesota_West_Community_Technical_College_039","Pine_Technical_Community_College_039","Riverland_Community_College_039","Saint_Paul_College_039","StCloud_Technical_Community_College_039","Alexandria_Technical_Community_College_019","Anoka_Ramsey_Community_College_019","Central_Lakes_College_019","Century_College_019","Dakota_County_Technical_College_019","Hennepin_Technical_College_019","Hibbing_Community_College_019","Inver_Hills_Community_College_019","Itasca_Community_College_019","Minnesota_State_College_Southeast_019","Minnesota_State_Community_Technical_College_019","Normandale_Community_College_019","North_Hennepin_Community_College_019","Rochester_Community_Technical_College_019","Saint_Paul_College_019","South_Central_College_019","StCloud_Technical_Community_College_019","Alexandria_Technical_Community_College_008","Anoka_Ramsey_Community_College_008","Central_Lakes_College_008","Century_College_008","Fond_du_Lac_Tribal_Community_College_008","Hennepin_Technical_College_008","Hibbing_Community_College_008","Inver_Hills_Community_College_008","Itasca_Community_College_008","Lake_Superior_College_008","Mesabi_Range_College_008","Minneapolis_Community_Technical_College_008","Minnesota_State_College_Southeast_008","Minnesota_State_Community_Technical_College_008","Minnesota_West_Community_Technical_College_008","Normandale_Community_College_008","North_Hennepin_Community_College_008","Northland_Community_Technical_College_008","Northwest_Technical_College_Bemidji_008","Pine_Technical_Community_College_008","Rainy_River_Community_College_008","Ridgewater_College_008","Riverland_Community_College_008","Rochester_Community_Technical_College_008","Saint_Paul_College_008","South_Central_College_008","StCloud_Technical_Community_College_008",null,null,null,null,null,null,null,null,null,null,null,null,null,null,null,null,null,"Alexandria_Technical_Community_College_070","Anoka_Technical_College_070","Anoka_Ramsey_Community_College_070","Central_Lakes_College_070","Century_College_070","Dakota_County_Technical_College_070","Hennepin_Technical_College_070","Hibbing_Community_College_027","Lake_Superior_College_070","Minneapolis_Community_Technical_College_070","Minnesota_North_College_070","Minnesota_State_College_Southeast_070","Minnesota_State_Community_Technical_College_070","Minnesota_West_Community_Technical_College_070","Northland_Community_Technical_College_070","Northwest_Technical_College_Bemidji_070","Ridgewater_College_070","Riverland_Community_College_070","Rochester_Community_Technical_College_070","Saint_Paul_College_070","StCloud_Technical_Community_College_027","South_Central_College_070","Alexandria_Technical_Community_College_073","Anoka_Technical_College_073","Anoka_Ramsey_Community_College_073","Central_Lakes_College_073","Century_College_073","Dakota_County_Technical_College_073","Fond_du_Lac_Tribal_Community_College_073","Hennepin_Technical_College_073","Hibbing_Community_College_073","Inver_Hills_Community_College_073","Itasca_Community_College_073","Lake_Superior_College_073","Mesabi_Range_College_073","Minneapolis_Community_Technical_College_073","Minnesota_State_College_Southeast_073","Minnesota_State_Community_Technical_College_073","Minnesota_West_Community_Technical_College_073","Normandale_Community_College_073","North_Hennepin_Community_College_073","Northland_Community_Technical_College_073","Northwest_Technical_College_Bemidji_073","Pine_Technical_Community_College_073","Rainy_River_Community_College_073","Ridgewater_College_073","Riverland_Community_College_073","Rochester_Community_Technical_College_073","Saint_Paul_College_073","South_Central_College_073","StCloud_Technical_Community_College_073","Vermillion_Community_College_073","Century_College_058","Minneapolis_Community_Technical_College_058","Minnesota_State_Community_Technical_College_058","Saint_Paul_College_058","Alexandria_Technical_Community_College_071","Anoka_Ramsey_Community_College_071","Central_Lakes_College_071","Century_College_071","Dakota_County_Technical_College_071","Fond_du_Lac_Tribal_Community_College_071","Hennepin_Technical_College_071","Inver_Hills_Community_College_071","Itasca_Community_College_071","Mesabi_Range_College_071","Minneapolis_Community_Technical_College_071","Minnesota_State_College_Southeast_071","Minnesota_State_Community_Technical_College_071","Minnesota_West_Community_Technical_College_071","Normandale_Community_College_071","North_Hennepin_Community_College_071","Northland_Community_Technical_College_071","Ridgewater_College_071","Riverland_Community_College_071","Rochester_Community_Technical_College_071","Saint_Paul_College_071","South_Central_College_071","StCloud_Technical_Community_College_071","Vermillion_Community_College_071","Itasca_Community_College_046","Alexandria_Technical_Community_College_034","Central_Lakes_College_034","Century_College_034","Fond_du_Lac_Tribal_Community_College_034","Hennepin_Technical_College_034","Hibbing_Community_College_034","Inver_Hills_Community_College_034","Minneapolis_Community_Technical_College_034","Minnesota_State_College_Southeast_034","Minnesota_State_Community_Technical_College_034","Minnesota_West_Community_Technical_College_034","Normandale_Community_College_034","North_Hennepin_Community_College_034","Northland_Community_Technical_College_034","Ridgewater_College_034","Riverland_Community_College_034","Rochester_Community_Technical_College_034","Saint_Paul_College_034","Vermillion_Community_College_034","Anoka_Technical_College_018","Central_Lakes_College_018","Century_College_018","Hennepin_Technical_College_018","Inver_Hills_Community_College_018","Itasca_Community_College_018","Lake_Superior_College_018","Mesabi_Range_College_018","Minnesota_State_Community_Technical_College_018","Minnesota_West_Community_Technical_College_018","Northland_Community_Technical_College_018","Northwest_Technical_College_Bemidji_018","Pine_Technical_Community_College_018","Ridgewater_College_018","Riverland_Community_College_018","Rochester_Community_Technical_College_018","South_Central_College_018","StCloud_Technical_Community_College_018","Vermillion_Community_College_018","Anoka_Ramsey_Community_College_014","Century_College_014","Fond_du_Lac_Tribal_Community_College_014","Hennepin_Technical_College_014","Inver_Hills_Community_College_014","Mesabi_Range_College_014","Minneapolis_Community_Technical_College_014","Minnesota_North_College_014","Minnesota_West_Community_Technical_College_014","Normandale_Community_College_014","Northwest_Technical_College_Bemidji_014","Ridgewater_College_014","Rochester_Community_Technical_College_014","South_Central_College_014","StCloud_Technical_Community_College_014","Alexandria_Technical_Community_College_022","Anoka_Technical_College_022","Anoka_Ramsey_Community_College_022","Central_Lakes_College_022","Century_College_022","Hennepin_Technical_College_022","Inver_Hills_Community_College_022","Mesabi_Range_College_022","Minneapolis_Community_Technical_College_022","Minesota_North_College_022","Minnesota_State_College_Southeast_022","Normandale_Community_College_022","North_Hennepin_Community_College_022","Pine_Technical_Community_College_022","Riverland_Community_College_022","Rochester_Community_Technical_College_022","South_Central_College_022","StCloud_Technical_Community_College_022","Century_College_051","Minnesota_State_College_Southeast_051","Minnesota_State_Community_Technical_College_051","Minnesota_West_Community_Technical_College_051","Northwest_Technical_College_Bemidji_051","Ridgewater_College_051","Riverland_Community_College_051","Saint_Paul_College_051"]
[null,null,"Veterinary Technician","Lamb and Wool Management","Animal Science","Poultry Management","Veterinary Technician","Professional Swine Manager","Veterinary Technician","Advanced Farm Business Management","Advanced Farm Business Management","Horticulture Technology","Greenhouse Management Technician","Cannibus Studies","Advanced Farm Business Management","Advanced Agricultural Commodity Marketing","Advanced Farm Business Management","Advanced Farm Business Management","Advanced Farm Business Management","Advanced Farm Business Management","Advanced Agriculture Diesel Equipment Technician","Agriculture Automation","Advanced Agriculture Technician","Applied Brewing Science and Production","Biofuels Technology Biodiesel","Food Science","Environmental Science","Environmental Studies","Environmental Science","Urban Forestry Technician","Environmental Science","Environmental Studies","Environmental Science","Environmental Science","Environmental Science","Environmental Science","Environmental Science","Backcountry Guide","Turf and Golf Course Management","Agricultural Crop Production and Management","[none]","Arboriculture","Agriculture","Advanced General Agriculture","Agricultural Science and Technology","Agribusiness","Agriculture Education Technology Partnership","Narrative Video Production","Cinema","Multimedia Production","Audio Production Specialist","Workplace Writing","Media Studies and Production","Sound Arts","Audio Video Systems Technology","Mass Communication","Communication Art and Design","Graphic Design","3D Animation","Graphic Design Technology","Animation and Motion Graphic Artist","Graphic Design: Digital and Print Media","Graphic Design","Graphic Design","Photography and Design","Graphic Design","Computer Animation","Photography","Computer Information Systems","Business Data Analyst","IT Support Specialist","Advanced Enterprise Computing","Networking Administration","Data Analyst","IT Networking and Security","I.T. Help Desk","Computer Technology","Computer Support and Network Administrator","IT Support","Information Technology","Computer and Networking Technology","Computer Technology","Data Science","Computer Support","Network Administration","Computer Support Technician","Computer Support Specialist","Computer Information Systems","Data Science","Computer Assistant","Network Administration","Cybersecurity, Virtualization, and Networking","Computer Networking","Cloud Computing","Linux Networking","Cisco Network Technician","Computer Science","CISCO Network Associate","Cisco Network","Cisco Networking","CISCO Networking","Computer Science Transfer Pathway","Computer Science Transfer Pathway","Cisco Networking","E-Merging Computer Technology","Computer Science Transfer Pathway","Cisco Network Associate","Computer Science Transfer Pathway","Computer Network Engineering","Cloud Computing & Virtualization Administration","Network Management and Security","Computer Programming","Cybersecurity Analysis and Techniques","Desktop Programming","Cyber Defense","Advanced Network Security",".Net Developer","Cyber and Information Security","Computer Programming","Computerizing Small Business",".NET Programming","Computer Programming","Computer Programmer","Cyber Security","Cybersecurity","Computer Programming","Computer Programming","Web Design and Development","Web Design","Web Design","Basic Web Technologies","Computer and Web Programming","Web Design and Front-End Development","Software & Web Development","Web Design","Web Development","Game Programming","Web Developer","Web Developer","Computer Graphics and Visualization","Web Programmer","Finance and Investments","Finance","Business/Financial Services","Finance Management","Finance","Accounting","Accounting Practitioner","Accountant","Accounting","Accountant","Accounting","Accounting Transfer Pathway","Accounting Transfer Pathway","Accountant","Small Business Accounting","Accounting","Accounting","Accounting","Accounting","Accounting","Accounting Skills","Accounting","Accounting","Accounting","Accountant","Accounting","Accounting Clerk","Accounting","Accountant","Accounting","Fashion Management","Sales Management","Marketing and Sales","Sales Management","Business: Management, Marketing and Sales","Marketing and Sales","Digital Marketing","Sales and Marketing","Marketing and Sales Management","Marketing Sales Management","Marketing","Digital Marketing Specialist","Marketing","E-Commerce Essentials","Marketing and Design","Social Media Marketing","Global Trade Professional","Marketing Management","Marketing and Design","Home Furnishing Sales","Sales Specialist","Marketing and Sales","Professional Sales Representative","Retail Merchandising Sales Associate","Sales","Electronic Technology Marketing","Sales and Marketing","Administrative Office Specialist","Administrative Specialist","Administrative Assistant","Administrative Assistant","Administrative Assistant","Microsoft Applications","Office Technology","Administrative Office","Business Operations & Management","Administrative Assistant","Administrative Office Assistant - Finance","Administrative Assistant","Business Software and Administrative Management","Accounting Management and Computer Info Systems","Administrative Office Specialist","Administrative Business Specialist","Administrative Assistant","Administrative Assistant","Administrative Office Professional","Office Management Professional","Admin Office Specialist-Client Relations Spec","Office Administration","Multi-Cultural Leadership","Lean Manufacturing/Continuous Improvement","Human Resource Management","Human Resource Management","Human Resource Management","Administrative Office Assistant - Human Resources","Human Resource Management","Human Resources","Human Resource Development","Employee Development","Human Resources","Business Management","Supervisory Leadership","Business","Business Management","Business Management","Business Administration","Athletic Coaching","Business  ","Business Transfer Pathway","Business Transfer Pathway","Business Transfer Pathway","Business Administration","Business","Business Management","Business Management","Business","Business Management","Business Management","Business Principles","Business Transfer Pathway","Business","Business Administration","Business Transfer Pathway","Business","Business Administration","Business","Administrative Office Management","Business Management","Business Transfer Pathway","Culinary Arts","Baking and Pastry Entrepreneur","Culinary Arts","Culinary Arts","Advanced Meat Cutting","Culinary Arts","Culinary Arts","Culinary Arts","Food and Beverage Management","Event and Meeting Management","Diesel Mechanics","Automotive Electronic Diagnostic Specialist","Automotive Technology","Auto Body Technician","Auto Body Collision Technology","Advanced Vehicle Specialist","Automotive Technician","Auto Body Technology","Mobile Equipment Service Technician","Aircraft Maintenance Technician","Auto Body Collision Technology","Automotive Service Technology","Advanced Diesel","Auto Body Collision Technology","Automotive Service and Performance","Automotive Technology","Auto Body Collision Technology","Automotive General Service Technician","Automotive Technician","Automotive Service Technician","Auto Body and Collision Technology","Auto Body Collision Technician","Transportation Management","Aviation Management","Transportation Management","Supply Chain Logistics","Carpentry","Construction Electrician","Advanced Solar Photovoltaic Energy Systems","Construction Codes and Inspection","Electric Utility Technology","Apprenticeship Technology","Electrical Maintenance and Construction","Building Inspection Technology CORE","Building Construction Technology","Blocklaying","Construction Technology","Construction Management","Carpentry","Building Inspection","Carpentry-Residential","Construction Foundations","Construction Technology","Carpentry","Carpentry - Commercial","Carpentry","Cabinetmaking","Carpentry","Carpentry","Interior Design","Architectural 2D CAD","Interior Design","Architectural Drafting","Architectural Technology","Civil Engineering Technology","Architectural Technology","Architectural Drafting","Architectural Technology and Design","Architectural Drafting and Design","Architectural Construction Technology","Land Surveying","Cooling","Commercial HVAC/R","Commercial Heating and Air Conditioning Equipment","Heating and Cooling Technician","Heating, Ventilation, Air Cond.& Refrig Generalist","Advanced HVAC R","Heating, Ventilation and Air Conditioning","Commercial Refrigeration/HVAC","Heating, Ventilation, Air Conditioning/Refrig","Heating Air Conditioning Refrigeration- Commercial","Basic Welding","Basic Welding","CNC Technologies","Basic Welding","Welding Technology","GMAW Production Welder (MIG)","Gas Tungsten Arc Welding Production Welder","Advanced Welding","Machine Tool Technologies","CNC and Engineering","Industrial Workplace Readiness","Manufacturing Production Technician","Welding Manufacturing Technology","Welding Technology","Precision Machining","Entry Level Welder","Machine Technologist","Welding Technology","Machine Technology","Advanced Welding","Machine Operator","Mechanical Drafting, Design Engineering Technology","Advanced CNC Machine Technology","Mechatronics","Digital Fabrication Technology","Industrial Engineering Technology","Clean Energy Systems Technician","3D Printing System Maintenance","Energy Technical Specialist","Engineering CAD Technician","Computer Integrated Manufacturing","Advanced Apparel Technologies","Automation Electronics","Design and Engineering Technology","Energy Technical Specialist","Vacuum and Thin Film Technology","Certified Production Technician","Engineering Technology","Applied Engineering Design Technologist","CAD Technician","Automation Technologies","CAD (Computer Aided Drafting) Technology","Automation Technologies","Energy Technical Specialist","Automation Technology","Biomedical Equipment Technician","Biomedical Core","Biomedical Equipment Technology","Electronics Engineering Technology","Industrial Systems Technology","Basic Electronics","Industrial Mechanical Technology","Band Instrument Repair","Fluid Power Technology","AST-Industrial Equipment Technician","Industrial Maintenance and Mechanics","Electromechanical Systems - Mechanical","Biomedical Equipment Technician","Engineering Broad Field","Applied Engineering Technology","Engineering","Engineering Broad Field","[none]","Lean Manufacturing","Engineering Broad Field","Engineering Fundamentals","Engineering","Automation Foundations","Engineering","Engineering Broad Field","Pre-Engineering","Engineering Broad Field","Engineering Broad Field","Engineering Foundations","Engineering Broad Field","Health Sciences Broad Field","Clinical Research Professional","Health Sciences Broad Field","Health Sciences Broad Field","Health Sciences Broad Field","Health Sciences Broad Field","Health Sciences Broad Field","Health Sciences Broad Field","Health Sciences Broad Field","Health Sciences Broad Field","Health Sciences Broad Field","Health Sciences Broad Field","Health Sciences Broad Field","Pre-professional Health","Biotechnology Lab Technician","Health Sciences Broad Field","Health","Health Sciences Broad Field","Health Sciences Broad Field","Health Sciences Broad Field","Health Sciences Broad Field","Health Sciences Broad Field","Biotechnology","Health Sciences Broad Field","Health Sciences Broad Field","Health Sciences Broad Field","Health Sciences Broad Field",null,null,null,null,null,null,null,null,null,null,null,null,null,null,null,null,null,"Medical Administrative Specialist","Health Information Technology","Public and Community Health","Healthcare Administrative Specialist","Dental Practice Management","Medical Administrative Specialist","Health Unit Coordinator","Medical Coding & Scribing","Medical Office Specialist","Central Services Technician","TBD","Health Unit Coordinator","Health Information Technology/Coding","Healthcare Administrative Assistant","Medical Administrative Assistant","Healthcare Administrative Leadership","Healthcare Administrative Assistant","Medical Administrative Assistant","Cancer Registry Management","Health Information Technology","Health Information Technology","Health Unit Coordinator","Exercise Science","Health Technology","Exercise Science Transfer Pathway","Dental Assisting","Dental Assistant","Dental Assistant","Fitness and Health","Dental Assistant","Dental Assistant","Exercise Science Transfer Pathway","Nursing Assistant","Dental Hygiene","Health Care Pre-Professional","Dental Assistant","Exercise Science Transfer Pathway","Child and Adolescent Therapeutic Behavioral Health","Dental Assistant","Dental Hygiene","Exercise Science Transfer Pathway","Exercise Science Transfer Pathway","Dental Assisting","Health Care Pre-Professional","Coaching","Activity Director","Exercise Science Transfer Pathway","Advanced Hospital Nursing Assistant","Clinical Massage Therapy","Basic Nursing","Dental Assistant","Outdoor Recreation Therapy","Translation and Interpreting","Library Information Technology","American Sign Language Pre-Interpreting","Sign Language Interpreter/Transliterator","Early Childhood Education","Athletic Coaching","Early Childhood Education Transfer Pathway","Education","Early Childhood Education Transfer Pathway","Anishinaabe and American Elementary Education","Early Childhood Education Transfer Pathway","Education Foundations","Class Act Pre-Education","Child Development","Early Childhood Education Transfer Pathway","Early Childhood and Early Elementary Support/Tutor","Autism Spectrum Disorder","Early Childhood Education Transfer Pathway","Elementary Education Foundations Transfer Pathway","Education","Agriculture Education","Early Childhood Education","Coaching","Coaching","Early Childhood Education Transfer Pathway","Early Childhood Education Transfer Pathway","Coaching","Coaching","Strategic Security Studies","Law Enforcement","Criminal Justice","Corrections","Corrections","Law Enforcement","Law Enforcement","Corrections","Criminal Justice Transfer Pathway","Criminal Justice","Correctional Officer","Law Enforcement","Criminal Justice Transfer Pathway","Corrections","Criminal Justice - Law Enforcement","Criminal Justice Transfer Pathway","Criminal Justice - Corrections","Criminal Justice Transfer Pathway","Criminal Justice Transfer Pathway","Criminal Justice - Police Science","Emergency Medical Services","Emergency Medical Response Technician","Emergency Medical Services","Emergency Medical Services Specialist","Advanced Emergency Medical Technician","Wildland Firefighting","Emergency Medical Technician","Emergency Medical Services","Fire/Emergency Medical Technician Technologies","Emergency Medical Services","Fire Technology","Emergency Medical Technician","Emergency Medical Services Professional","Paramedic","Emergency Medical Care Services","Emergency Medical Technology","Intensive Care Paramedic Technician","Paramedicine","Emergency Medical Services","Alcohol and Drug Counseling","Addiction Counseling","Chemical Dependency","Community Paramedic Clinician","Community Health Worker","Addiction Studies","Addiction Counseling","TBD","Community Health Worker","Community Health Worker and Navigator","Community Health Worker","Chemical Dependency Counselor","Alcohol and Drug Counseling","Community Paramedic","Community Paramedic","Behavioral Health and Human Services","Behavioral Health and Human Services","Pre-Social Work Transfer Pathway","Human Services Technician","Human Services","Pre-Social Work Transfer Pathway","Human Service Worker","Human Services Generalist","Community Development","TBD","Geriatric Health and Wellness Promotion","Family Studies","Human Services","Human Service Child Support","Human Services","Human Services Specialist","Family Services","Child and Adult Care and Education","Cosmetology","Advanced Esthetician","Advanced Practice Esthiology","Cosmetology","Cosmetology","Advanced Esthetics","Advanced Practice Esthetician","Advanced Practice Esthetics"]
["These are the COLLEGE PROGRAM NAMES",null,null,null,null,"Veterinary Technology",null,null,null,"Applications in Farm Business Management","Agricultural Commodities Marketing",null,"Greenhouse Technician",null,"Agricultural Commodities Marketing","Advanced Farm Business Management","Agri Business","Agricultural Commodities Marketing","Agribusiness","Agricultural Commodities Marketing","Agriculture Diesel Equipment Technician","Agriculture Equipment Mechanic","Ag Chemical Applicator Technician","Brewing and Beer Steward Technology","Biofuels Technology Ethanol","Food Science Technology","Sustainability","Natural Resources Conservation Services",null,null,null,"Industrial Technology: Pulp and Paper",null,null,null,null,null,"Environmental Science","Turf and Golf Course Technician","Agricultural Science",null,"Landscape Computer Design","Plant Science/Precision Agriculture","General Agriculture","Agronomy Applicator Technician","Agricultural Sciences",null,"Online Video Content Creator",null,null,"Interactive Designer",null,null,null,"Multimedia Design Technology","Web Design",null,"Graphic Design - Media Technologies","Graphic Design","Photography","Graphic Design: Creative","Graphic Design: Digital and Print Media Core",null,"Video Game Studies","Professional Photography","Photography","Visualization Technology",null,"Cybersecurity","Information Technology Management","Network Support and Administration","Applied Big Data Analytics","PC Technician","Data Center Administration",null,"Information Technology Support","Cyber Defense","Database Administrator","Network Administration and Technology","Information Technology - Database Administration","Computer Applied Technology","Data Analytics",null,null,null,"Helpdesk","Computer Technology",null,"Healthcare Informatics","Information Systems","PC Specialist",null,"Computer Science Transfer Pathway","Cloud Security & Virtualization Forensics","Network Administration",null,"Computer Science Transfer Pathway",null,null,"Cybersecurity","Computer Science",null,null,"Computer and Network Technology",null,"Networking and Microcomputer Technologies",null,"Information Technology","Computer Science","Networking Services","Software Development","Cybersecurity","Cybersecurity, Forensics, and Information Assurance","Software Development","Cybersecurity","Advanced Network Technology","Android Mobile Application Developer","Software & Web Development","Cybersecurity",null,"Application Programming","Cyber Security","Cyber Security","Fundamentals of Network Security",null,"CyberSecurity","Cyber Security",null,null,null,"Webmaster","Web Developer","Web Developer",null,null,"Webpage Design Assistant","Web Graphic Design, Programming and e-Commerce",null,"Web Developer: Game Design","Web Based 2D Game Development",null,null,null,"Small Business Entrepreneurship",null,null,"Accounting Transfer Pathway","Accounting Transfer Pathway","Bookkeeping","Accounting Clerk","Accounting Clerk","Accounting Technician",null,null,"Bookkeeper",null,"Accounting Transfer Pathway","Accounting and Networking Specialist","Accounting Clerk","Accounting Clerk","Accounting Transfer Pathway","Accounting Technology","Accounting Clerk - Microcomputer Applications","Accounting Clerk",null,"Accounting Clerk","Accounting Clerk","Accounting Transfer Pathway","Accounting Technician","Accounting Assistant","Accounting Clerk","Marketing and Sales Management",null,null,null,"Business: Marketing and Sales",null,"Marketing and Management","Sales, Marketing, and Management","Sales and Management Associate","Marketing Sales Management Associate","Marketing Communications Technology","Marketing",null,"E-Commerce Professional",null,null,"Global Trade Specialist",null,null,"Marketing Specialty",null,"Professional Sales (Business to Business)",null,"Sales Representative",null,"Electronic Technology Marketing I",null,"Office Communications Specialist","Business Computer Applications","Administrative Support","Computer Skills","Executive Administrative Specialist","Microsoft Generalist",null,"Administrative Office Specialist","Computer Applications","Business Software","Administrative Support","Office Management",null,"Communication and Computer Skills","Administrative Professional",null,"Office Assistant","Computer Applications","Executive Office Professional",null,"Administrative Office Specialist",null,"Multi-Cultural Quality Management",null,null,"Multi-Cultural Human Resource Management",null,"Human Resources",null,null,"Supervising & Managing",null,null,"Business Transfer Pathway","Supervisory Management","Business Crisis and Emergency Management","Business Transfer Pathway","Business Transfer Pathway","Business Management","Small Business/Entrepreneurship","Business Transfer Pathway",null,"Contemporary Business",null,"Business Transfer Pathway","Entrepreneurship","Business Transfer Pathway","Business Transfer Pathway","Business Administration","Business Transfer Pathway","Business Transfer Pathway","Business Transfer Pathway","Customer Service","Business Foundations","Business Essentials","Entrepreneurship","Business Transfer Pathway","Business Analysis","Business Management","Business Management","Business Transfer Pathway","Entrepreneurship",null,"Culinarian","Culinary Arts/Food Service Management",null,"Beginning Meat Cutting","Pastry and Baking",null,null,"Hospitality and Tourism Management","Hospitality Management","Marine and Powersports Technician","Automotive Technician","Diesel Equipment Technician","Automotive Services Technician","Automotive Chassis","Auto Body Technician","Diesel Mechanics and Heavy Equipment Maintenance","Auto Maintenance and Light Repair",null,"Bicycle Assembly and Repair Technician","Auto Body Refinishing","Diesel Equipment Technology","Automotive Technician","Automotive Electronics and Drivability","Automotive Service Technician",null,"Automotive Service Technology","Automotive Service Technology",null,"Medium and Heavy Duty Truck Technician","Automotive Service","Automotive Service Technician",null,null,null,null,"Construction","Construction Estimating","Advanced Solar Thermal Energy Systems","Construction Management",null,"Cabinetmaking",null,"Construction Management","Carpentry","Cabinet and Counter Top Installation",null,"Electrical Line Worker Technology","Electric Utility Substation Technician","Construction Management","Construction Electricity","Construction Technology",null,"Electrical Technology","Carpentry - Residential","Facility and Service Technology","Carpentry",null,"Electrical Construction Technology",null,"Architectural and Construction Technician","Interior Design Associate","Architectural Technology",null,null,"Architectural Virtual Reality and Rendering","Architectural Drafting and Design","Intro Architectural Technology & Design","Civil Engineering Technology","Land Surveying/Civil Engineering Technology",null,"Heating","Heating, Ventilation, Air Conditioning, and Refrig","Commercial Heating, Ventilation, AC, Refrigeration",null,"Heating, Ventilation, Air Conditioning & Refrig","Heating Ventilation Air Conditioning Refrigeration","Heating, Ventilation and Air Conditioning/Construc","Mechanical Construction","HVAC/R - Advanced","Heating Air Conditioning Refrigeration Residential","Machine Tool Technology","Machine Technology 1","Machine Operations",null,null,"GTAW Production Welder (TIG)","Integrated Manufacturing Tech - Manual Machinist","Entry Level Welding","Welding and Metal Fabrication","Machining Basics","Production Welding","Welding","Welding Process Technology",null,"Welding Technology","Industrial Welding","Machining",null,"Robotic Welding","Welding","Machine Technology","Mechatronics","CNC Design and  Manufacturing Technology","Robotic Human Machine Interface Advanced","Energy Technical Specialist",null,null,"Additive Manufacturing Designer","Process Operations","Engineering Technology","Electrical Controls and Maintenance","Apparel Technologies","Basic Drafting Technologies","Project Design Technician","Industrial Technology","Vacuum Maintenance Technician","Computer Aided Design","Industrial Maintenance","Applied Engineering Design Technology","CNC Precision Manufacturing Technician","Production Technologies","Manufacturing Technical Specialist - CAD","Chemical Technology","Intermediate Mechatronics Engineering Technology","CADD Operator","Electronic Technology","Biomedical Technology",null,"Electronics Technician",null,"Electronic Technology",null,"Basic Electronics","Information Technology","Firearm Technician","Manufacturing Skills Standards","Electromechanical Systems - Electrical",null,"Engineering Requisites","Engineering",null,null,null,null,null,null,null,"Computer Engineering Technology","Technological Studies I",null,null,null,"Science and Engineering Technology",null,null,null,"Health Sciences Broad Field",null,null,null,null,null,null,null,null,null,null,null,null,null,null,null,null,null,null,"Health Care Pre-Professional",null,"Health Sciences Broad Field",null,null,null,null,null,null,null,null,null,null,null,null,null,null,null,null,null,null,null,null,null,"Medical Coding Specialist","Health Unit Coordinator",null,null,"Medical Administrative Support","Medical Coding Specialist","Medical Office Specialist",null,"Medical Receptionist","Dental Office Support Personnel",null,"Healthcare Documentation Specialist","Medical Administrative Assistant","Healthcare Supervision and Leadership","Medical Coding Specialist","Healthcare Administrative Support","Health Information Technician","Medical Receptionist","Coding Specialist","Healthcare Administration","Medical Coding",null,"Nursing","Medical Assistant","Fitness Specialist","Dental Hygiene AAS","Dental Hygiene","Exercise and Sport Science","Nursing","Foundations of Dental Assisting","Nursing","Nursing","Practical Nursing","Exercise Science Transfer Pathway","Nursing Assistant/Home Health Aide","Dental Assistant Core","Nursing","Dental Assisting","Massage Therapy","Exercise Science Transfer Pathway","Nursing ","Nursing","Nursing","Medical Assistant","Exercise Science Transfer Pathway","Massage Therapy","Home Health Aide","Dental Assistant","Clinical Sports Massage","Dental Assisting","Dental Hygiene",null,null,"Public Information Services",null,null,"Early Childhood Education Transfer Pathway","Elementary Education Foundations Transfer Pathway",null,"Elementary Education Foundations Transfer Pathway",null,"Culturally Responsive Leadership",null,"Elementary Education Foundations Transfer Pathway","Coaching","Early Childhood/Early Childhood Special Education","Education","Early Childhood Development","Early Childhood Education Transfer Pathway","Education Paraprofessional","Exercise Specialist","Elementary Education Foundations Transfer Pathway","Early Childhood","Early Childhood Education Transfer Pathway","Personal Trainer / Athletic Coaching","Early Childhood Education Transfer Pathway","Registered Yoga Teacher",null,"Early Childhood Education",null,null,"Law Enforcement Skills","Law Enforcement Skills","Criminal Justice","Criminal Justice",null,"Law Enforcement Skills - Clinical Component","Corrections Certificate","Law Enforcement Transfer Pathway",null,"Criminal Justice","Law Enforcement Skills","Law Enforcement","Criminal Justice",null,"Peace Officer","Criminal Justice - Law Enforcement Non-POST","XD: ",null,"Park Ranger Law Enforcement Academy","Paramedic","Fire Emergency Response","Emergency Medical Technician","Emergency Medical Technician","Emergency Medical Services",null,"Fire Fighter","Fire Suppression Technician",null,"Emergency Medical Technician","Paramedic",null,"Emergency Medical Technician",null,"Fire Science Technology","Emergency Medicine Paramedic",null,null,"Fireline Emergency Medical Technician","Alcohol and Drug Counseling Studies","Community Paramedic",null,"Community Paramedic Technician","Community Paramedic",null,"Community Health Worker",null,null,null,null,null,"Community Health Worker",null,null,"Pre-Social Work Transfer Pathway",null,null,"Pre-Social Work Transfer Pathway","Human Services Technician",null,"Human Services Assistant",null,"Human Services",null,"Pre-Social Work Transfer Pathway","Public Health","Pre-Social Work Transfer Pathway","Human Services Eligibility Worker",null,"Human Services Technician","Pre-Social Work Transfer Pathway","Early Childhood Education","Nail Care Technician","Cosmetology","Cosmetology","Cosmetology-Other States",null,"Cosmetology","Advanced Practice Esthetics","Cosmetology"]
[null,null,null,null,null,null,null,null,null,"Commodity Marketing in Farm Business Management","Applications in Farm Business Management",null,null,null,"Agriculture Business","Agricultural Commodities Marketing","Agricultural Commodities Marketing","Applications of FBM","Agri-Business Office Specialist/Manager","Applications of Farm Business Management","Precision Agriculture Equipment Technician",null,"Agriculture and Diesel Service Technician",null,null,null,null,"Natural Resources Technology",null,null,null,"Natural Resources",null,null,null,null,null,"Fisheries and Wildlife Management",null,"Sustainable Landscaping",null,"Landscape Construction","Precision Agriculture Application Technician","Precision Agriculture","Agronomy Technology","Precision Agriculture",null,null,null,null,"Media Producer",null,null,null,null,null,null,null,"Professional Photography","Professional Photography","Graphic Design: Web Design","Photography and Motion",null,null,"Professional Photography Technology",null,null,null,null,"IT Support",null,"Computer Information Systems",null,"Data Center Operations",null,"Microsoft Certified Solutions Associate (MCSA)","Cyber Security","Database Specialist",null,null,"Computer Specialist","Healthcare Systems Technology",null,null,null,"Linux Administrator","Microsoft Systems Engineer",null,"Network Administration","Network Administration",null,null,"System Administration","Computer Science Transfer Pathway","Network Support",null,"IP Telephony",null,null,null,null,null,null,"IT Cybersecurity",null,null,null,null,"Computer Science Transfer Pathway",null,null,"Network Security","Digital Forensics Analysis and Techniques","Web Programming","IT Security","Computer Programmer","Apple Mobile Application Developer",null,null,null,"Internet Programming",null,null,null,null,"Java Programming",null,null,null,null,null,null,null,null,null,null,null,null,"Web Page Design","Web Design",null,null,null,null,null,null,null,"Small Business Accounting","Healthcare Accounting","Accounting Technician","Small Business Accounting","Accounting Transfer Pathway",null,null,null,null,"Accounts Payable/Receivable","Accounting Assistant","Accounting Transfer Pathway",null,null,"Accounting Transfer Pathway","Accounting Transfer Pathway",null,null,"Accounting Technician","Accounting Transfer Pathway",null,"Finance","Accounting Technician",null,"Retail Management",null,null,null,"Digital Marketing",null,null,null,null,null,"Marketing Management",null,null,"Marketing",null,null,"Marketing",null,null,null,null,null,null,null,null,"Electronic Technology Marketing II",null,"Office Software Specialist",null,"Business Assistant","Office Assistant",null,"Microsoft Specialist",null,null,"Computer Proficiency","Customer Service Representative",null,"Receptionist",null,"Digital Knowledge Analysis",null,null,null,"Document Specialist",null,null,"Administrative Office Specialist-Business Software",null,"Multi-Cultural Supervision",null,null,"Quality Improvement",null,null,null,null,null,null,null,null,null,"Business Generalist","Entrepreneurship","Entrepreneurial","Small Business Entrepreneur",null,"Digital Marketing",null,"Contemporary Business Practice",null,"Leadership","General Business","Entrepreneurship","Leadership and Supervision","Business Transfer Pathway","Management","Management","Entrepreneurship","Supervisory Leadership","Business Transfer Pathway","Business Transfer Pathway",null,"Leadership","Business Management","Business Transfer Pathway","Business Transfer Pathway",null,"General Business",null,"Culinary and Food Truck Entrepreneur","Pastry Artist",null,null,null,null,null,"Hotel Operations Management",null,"Marine, Motorcycle, and Powersports Technician","CNC Service Technician","Heavy Equipment Operation and Maintenance","Basic Automotive Service","Automotive Electronics","Autobody Estimator",null,"Auto Service Technology",null,null,"Auto Body Sheet Metal Repair and Replacement","PowerSports Technology","Basic Diesel","Automotive Engine Repair, Suspension and Brakes",null,null,null,"Autonomous Vehicle Technician Certificate",null,null,null,"Medium/Heavy Truck Technician",null,null,null,null,null,"Construction Estimating Technician","Facilities Maintenance Engineer","Electrical Construction and Maintenance Technology",null,"Carpentry",null,null,"Commercial and Residential Wiring","Carpentry",null,"Electrical Technology","Electric Utility Substation Technology","Construction Management and Supervision","Construction Plumbing","Electrical Construction and Maintenance",null,"Electrician","Electrical Maintenance Technician",null,"Electrical Technology",null,"Plumbing",null,"Architectural Technology","Kitchen and Bath Design","Civil Engineering and Land Survey Technology",null,null,null,"Civil Engineering Technology",null,null,null,null,"Heating, Vent, Air Condition and Refrig Technician","HVAC/R","Commercial Refrigeration",null,null,"Refrigeration and Air Conditioning",null,null,"HVAC/R - Foundation",null,"Welding Technology","Machine Technology 2","Robotic Welding",null,null,"Robotic Arc Welding","Integrated Manufacturing Technology - Welding","Welding",null,"Machining Right Skills Now",null,null,"Welding Process Technology  GMAW",null,null,"Machining Technician","Welding",null,"Sheet Metal & HVAC Ducts & Fittings","Welding and Machining Technology","Welding Technology","Robotics","Machine Technology 3","Robotic Manufacturing","Engineering CAD Technology",null,null,"Auto CAD Operator",null,"Integrated Manufacturing - Engineering CAD Tech","Energy Technical Specialist","CNC Machinist Machine Tool","Bicycle Design and Fabrication",null,"Industrial Technology II","Vacuum Technology","Electronics Technology/Automated Systems","Production Technologies","Applied Engineering Technology","CNC Technician",null,null,"CNC Toolmaking","Machine Tool Technology","CNC and Advanced Machining","Robotic and Electronic Engineering Technology",null,null,"Fluid Power Engineering Technician",null,"Electronic Technology - Industrial Controls",null,"Biomedical Equipment Technology","Mechatronics Fluid Power Specialist","Gunsmithing & Firearms Technology",null,null,null,"Engineering Sciences",null,null,null,null,null,null,null,null,"Electromechanical Technology","Technological Studies II",null,null,null,"Scientific Research",null,null,null,null,null,null,null,null,null,null,null,null,null,null,null,null,null,null,null,null,null,null,null,null,null,null,null,null,null,null,null,null,null,null,null,null,null,null,null,null,null,null,null,null,null,null,null,"Medical Coding Specialist",null,null,"Medical Office Assistant",null,"Nursing Station Technician",null,"Pre-Health Services Management","Medical Office Administration",null,"Medical Administrative Specialist","Medical Coding  ","Health Information Technician Assistant","Medical Office Specialist","Medical Coding","Medical Coding Specialist",null,"Health Information Technology","Healthcare Documentation Specialist",null,null,"Nursing Assistant","Nursing Assistant/Home Health Aide","Integrative Health and Healing","Exercise Science Transfer Pathway","Exercise Science Transfer Pathway","Exercise Science Transfer Pathway","Nursing Assistant","Medical Assistant","Nursing Assistant","Nursing Assistant",null,"Massage Therapist","Practical Nursing","Herbal Studies","Practical Nursing","Dental Hygiene","Medical Assistant","Nursing Assistant","Nursing (MANE)","Nursing Assistant","Nursing Assistant","Nursing","Fitness Specialist","Medical Assistant","Massage Therapist","Dental Assistant Expanded Functions","Massage Therapy","Medical Assistant","Nursing",null,null,"Technical Information Services",null,null,null,"Special Education Transfer Pathway",null,"Paraeducation",null,null,null,"Physical Education","Early Childhood Education Transfer Pathway","Teacher Assistant/Instructional Aide/Paraprofessio","Education Foundations","Early Childhood Education","Elementary Education Transfer Pathway","Elementary Education Foundations Transfer Pathway","Special Education Transfer Pathway","Personal Training","Early Childhood and Paraprofessional Education","Early Childhood Special Education",null,null,null,null,"Elementary Education Foundations Transfer Pathway",null,null,"Law Enforcement Transfer Pathway","Natural Resource Law Enforcement","Intelligence and Crime Analysis","Criminal Justice Transfer Pathway",null,"Law Enforcement Transfer Pathway","Criminal Justice Transfer Pathway",null,null,null,"Law Enforcement Transfer Pathway","Law Enforcement Transfer Pathway","Criminal Justice Transfer Pathway",null,"Peace Officer/Public Safety Transfer Pathway","Criminal Justice Transfer Pathway","Peace Officer - Skills",null,"Wildland/Wildlife Law Enforcement",null,null,"Fire Services","Emergency Room Technician","Emergency Medical Technician",null,"Fire Medic","Paramedic",null,null,null,null,null,null,"Fire Services",null,null,null,"Wilderness Emergency Medical Services",null,null,null,"Primary Care Technician",null,null,null,null,null,null,null,null,null,null,null,null,null,null,null,"Human Services Volunteer",null,"Pre-Social Work Transfer Pathway",null,"Pre-Social Work Transfer Pathway",null,null,null,null,null,null,"Pre-Social Work Transfer Pathway",null,null,null,"Esthiology","Cosmetology (North Dakota)","Esthetician",null,"Estheology","Cosmetology","Esthetician"]
[null,null,null,null,null,null,null,null,null,"Current Issues in Farm Business Management","Current Issues in Farm Business Management",null,null,null,"Agriculture Business Management and Marketing","Applications in Farm Business Management","Dairy Management","Current Issues in FBM","Agribusiness Sales, Service, and Management","Essentials of Farm Business Management",null,null,"Agriculture Service Technician",null,null,null,null,"Wildlife Tourism",null,null,null,null,null,null,null,null,null,"Natural Resource Technology - Forestry/Wildlife",null,null,null,"Landscape Design and Construction",null,null,"Precision Agriculture",null,null,null,null,null,null,null,null,null,null,null,null,null,"Visual Communications Assistant",null,"Motion Graphics",null,null,null,null,null,null,null,null,"SQL",null,"Enterprise Computing Technician",null,"Database Specialist",null,null,"Microsoft Server Administrator","Information Technology Fundamentals",null,null,"Computer Support Technician",null,null,null,null,"Network Administration and Security",null,null,null,null,null,null,null,"Information and Telecommunications Technology","Windows Networking",null,"Network Technology and Security",null,null,null,null,null,null,null,null,null,null,null,null,null,null,null,"Information Security/Assurance",null,"SQL Software Developer","Network Security","Computer Forensics",null,null,null,"Object-Oriented Programming",null,null,null,null,null,null,null,null,null,null,null,null,null,null,null,null,null,null,"Web Development",null,null,null,null,null,null,null,null,null,"Accounting Transfer Pathway",null,null,null,null,null,null,null,"Accounting Transfer Pathway","Payroll Specialist",null,null,null,null,null,null,null,"Bookkeeper",null,null,"Payroll Clerk",null,null,null,null,null,"Professional Sales Skills",null,null,null,null,null,"Social Media Marketing",null,null,null,null,null,"Social Media Marketing",null,null,null,null,null,null,null,null,null,null,null,null,"Microsoft Office Professional","Office Support",null,"Office Support",null,null,"Customer Service Specialist","Customer Service Specialist",null,null,null,"Microsoft Office Administrative Professional",null,null,null,"Office Information Specialist",null,null,null,null,null,null,null,null,null,null,null,null,null,null,null,null,null,"Business Transfer Pathway","Management",null,"Sport Management",null,"Entrepreneurship",null,"Customer Service",null,"Supervisory Management","Service Support Specialist",null,"Project Management","Entrepreneurship Certificate","Small Business Management","Small Business Management","Management",null,"Management and Entrepreneurship",null,null,"Supervisory Management","Business Transfer Pathway","Entrepreneurship",null,null,null,null,"Culinary Arts",null,null,null,null,null,null,"Sustainable Tourism Management",null,null,null,"Marine and Powersports",null,"Automotive Engine Performance","Automotive Technician",null,"Aviation Maintenance Technology",null,null,"Automotive Maintenance and General Repairs",null,"Diesel Mechanics (Ag and Truck)","Automotive Service Technology",null,null,null,"Diesel Technology",null,null,null,"Non-Structural Auto Body",null,null,null,null,null,"Plumbing Technology","Solar Assessor","Electrical Lineworker",null,"CNC Machining for Wood and Plastic",null,null,"General Construction Worker","Concrete Flatwork",null,"Plumbing Technology","Electrician","Construction Quality Assurance and Quality Control",null,"Electrical Instrumentation",null,null,"Electrician - Construction",null,"Electromechanical Systems",null,"Plumbing - Shop Management",null,null,null,"Interior Design",null,null,null,"Survey Technician",null,null,null,null,null,null,"Heating, Ventilation, AC and Refrigeration",null,null,null,null,null,"Refrigeration Technology",null,null,"Pipe Welder","Welding and Fabrication",null,null,"Structural Iron Fabrication and Repair","Sheet Metal Technology",null,null,"Welding Technology",null,null,"Welding Process Technology  GTAW",null,null,"Welding","Welding Technology",null,"Welding Technology","Welding Fabrication","Welding/Fabrication",null,"Mechanical CAD Drafter","Robotic Offline Programming Advanced",null,null,null,"Automated Machinery Repair Technician",null,"Integrated Manufacturing - Engineering CAD Technol",null,null,"Bicycle Fabrication",null,"Mechatronics",null,"Manufacturing Technology",null,"Automated Systems Technology","Computer Aided Drafting and Design",null,null,"Machine Operator (Right Skills Now)","Machine Tool Technology Foundations","Computer-Aided Mechanical Design",null,null,null,"Fluid Power Mechanic",null,null,null,"Electric Guitar Building",null,null,null,null,null,"Engineering Technology",null,null,null,null,null,null,null,null,"Industrial Maintenance",null,null,null,null,null,null,null,null,null,null,null,null,null,null,null,null,null,null,null,null,null,null,null,null,null,null,null,null,null,null,null,null,null,null,null,null,null,null,null,null,null,null,null,null,null,null,null,null,null,null,null,null,"Medical Office Specialist",null,null,null,null,null,null,null,"Medical Receptionist",null,null,"Medical Coding and Insurance","Health Information Technology","Patient Access Specialist",null,"Patient Access Representative",null,"Healthcare Informatics","Medical Coding",null,null,"Ophthalmic Medical Technician","Occupational Therapy Assistant","Integrative Health and Wellness Coaching","Nursing","Health Support Specialist","Medical Assistant","Practical Nursing","Nursing Assistant/Home Health Aide","Pharmacy Technician",null,null,"Medical Assisting",null,"Music Therapy",null,"Dialysis Technician","Nursing","Professional Nursing","Nutrition","Occupational Therapy Assistant","Practical Nursing","Nursing Assistant","Nursing Assistant","Nursing (MANE)","Massage Therapy","Dental Hygiene","Nursing Assistant/Home Health Aide","Nursing","Practical Nursing",null,null,null,null,null,null,null,null,"Special Education Transfer Pathway",null,null,null,"Special Education Transfer Pathway",null,null,"Elementary Education Foundations Transfer Pathway","Early Childhood Education Trainer/Coach",null,null,null,"Special Education Transfer Pathway",null,"Education Foundations",null,null,null,null,"Special Education Transfer Pathway",null,null,"Law Enforcement:  Career Transition",null,"Investigation","Law Enforcement",null,null,"Culturally Responsive Professional Peace Officer",null,null,null,null,null,"Law Enforcement",null,null,"Law Enforcement Transfer Pathway","Peace Officer/Public Safety Transfer Pathway",null,null,null,null,"Paramedic","Fire Protection Technician","Paramedic",null,"Fire Science and Administration",null,null,null,null,null,null,null,null,null,null,null,null,null,null,null,null,null,null,null,null,null,null,null,null,null,null,null,null,null,null,null,"Pre-Social Work Transfer Pathway",null,null,null,null,null,null,null,null,null,null,null,null,null,null,"Nail Care Technology","Esthetician","Hair Technician",null,null,"Esthetics","Esthetician International"]
[null,null,null,null,null,null,null,null,null,"Essentials in Farm Business Management","Enology",null,null,null,"Agriculture Production","Current Issues in Farm Business Management","Farm Business Management","Essentials of FBM","Agricultural Commodities Marketing","Farm Business Management",null,null,"Agriculture Technician",null,null,null,null,null,null,null,null,null,null,null,null,null,null,"Outdoor Leadership",null,null,null,"Landscape/Horticulture",null,null,"Precision Farming",null,null,null,null,null,null,null,null,null,null,null,null,null,null,null,"Video Production Specialist",null,null,null,null,null,null,null,null,null,null,"Enterprise Computing Technology",null,"IT Service Desk Technician",null,null,"Network Administration and Cyber Security","Linux Network Administrator",null,null,null,null,null,null,null,"Windows Administrator",null,null,null,null,null,null,null,"Networking Fundamentals",null,null,null,null,null,null,null,null,null,null,null,null,null,null,null,null,null,null,"Internet Programming",null,"Visual Basic Programmer",null,"Computer Security Specialist",null,null,null,null,null,null,null,null,null,null,null,null,null,null,null,null,null,null,null,null,null,null,null,null,null,null,null,null,null,null,null,null,null,null,null,null,null,null,null,null,"Bookkeeper",null,null,null,null,null,null,null,null,"Tax Preparer",null,null,null,null,null,null,null,null,null,null,null,null,null,null,null,null,null,null,null,null,null,null,null,null,null,null,null,null,null,null,null,null,null,null,"Software Applications",null,"Organizational Assistant",null,null,"Executive Office Management","Office Assistant",null,null,null,"Microsoft Office Essentials",null,null,null,null,null,null,null,null,null,null,null,null,null,null,null,null,null,null,null,null,null,"Entrepreneurship",null,null,"Supervisory Leadership",null,"Management",null,"Project Management",null,null,"Small Business Management",null,"Quality Improvement","Sport Management","Supervisory Leadership in Management",null,"Project Management Essentials",null,null,null,null,null,"Digital Marketing Specialist","Management",null,null,null,null,"Culinary Assistant",null,null,null,null,null,null,null,null,null,null,null,null,"Automotive Powertrain","Automotive Technology (Ford ASSET)",null,"Brake and Suspension Technician",null,null,"Automotive Technology",null,"Diesel Technology","Aviation Maintenance Technician Plus",null,null,null,null,null,null,null,"Refinish Assistant",null,null,null,null,null,null,"Solar Sales and Marketing",null,null,"Furniture Fabrication",null,null,"Power Limited Technician","Construction Management & Supervision",null,"Woodcraft Technician","Heating Technology","Construction Technology",null,"Facility Maintenance and Management",null,null,"Solar Installer",null,"Electromechanical Systems: Industrial Programming",null,null,null,null,null,"Interior Design: NCIDQ Pathway",null,null,null,null,null,null,null,null,null,null,"Residential Heating, Ventilation, Air Conditioning",null,null,null,null,null,null,null,null,"Robotic and Laser Welding",null,null,null,"Tool and Die/Moldmaking","Welding",null,null,null,null,null,"Welding Process Technology  SMAW",null,null,null,null,null,null,null,null,null,"Mechanical CAD Operator","Robotic Vision Advanced",null,null,null,"Automated Machinery Systems",null,"Integrated Manufacturing Technology - Automated Ma",null,null,"CNC Machine Tool",null,null,null,"Mechanical",null,"Manufacturing Foundations","Computer Numerical Control Technician",null,null,"Production Technologies","Machine Tool Technology Right Skills Now","Energy Technical Specialist",null,null,null,"Hydraulic Engineering Technician",null,null,null,"Electrical Engineering Technology",null,null,null,null,null,"General Engineering",null,null,null,null,null,null,null,null,"Mechatronics Technology",null,null,null,null,null,null,null,null,null,null,null,null,null,null,null,null,null,null,null,null,null,null,null,null,null,null,null,null,null,null,null,null,null,null,null,null,null,null,null,null,null,null,null,null,null,null,null,null,null,null,null,null,"Medical Receptionist",null,null,null,null,null,null,null,"Medical Scribe Specialist",null,null,"Medical Office Assistant","Management and Supervision in Healthcare",null,null,null,null,"Healthcare Office Professional","Medical Office",null,null,"Practical Nursing","Practical Nursing","Pharmacy Technician","Nursing Assistant","Medical Assistant","Nursing Assistant",null,"Practical Nursing",null,null,null,"Nursing",null,"Nursing",null,"Massage Therapy","Nursing Assistant",null,null,"Pharmacy Technology",null,"Nursing Assistant and Medication Aide",null,"Practical Nursing","Medical Assistant","Group Fitness Instructor","Pharmacy Technician","Practical Nursing","Surgical Technology",null,null,null,null,null,null,null,null,null,null,null,null,null,null,null,"Special Education Transfer Pathway","Early Childhood Education Transfer Pathway",null,null,null,null,null,"Education Paraprofessional",null,null,null,null,null,null,null,null,null,"Law Enforcement","Law Enforcement Skills",null,null,"Law Enforcement",null,null,null,null,null,"Law Enforcement Transfer Pathway",null,null,"Natural Resources Conservation",null,null,null,null,null,"Paramedic Fire Science","Fire Science Technology",null,null,"Fire Technology",null,null,null,null,null,null,null,null,null,null,null,null,null,null,null,null,null,null,null,null,null,null,null,null,null,null,null,null,null,null,null,null,null,null,null,null,null,null,null,null,null,null,null,null,null,null,null,"Eyelash Extension Technician","Nail Technician",null,null,"Hair Technician","Hair Technician"]
[null,null,null,null,null,null,null,null,null,"Farm Business Management","Essentials of Farm Business Management",null,null,null,"Agriculture Production Management","Essentials of Farm Business Management","Farm Operation and Management","Farm Business Management","Agronomy",null,null,null,"Agriculture Technician's Aide",null,null,null,null,null,null,null,null,null,null,null,null,null,null,"Outdoor Leadership Professional",null,null,null,"Professional Gardening",null,null,null,null,null,null,null,null,null,null,null,null,null,null,null,null,null,null,null,null,null,null,null,null,null,null,null,null,null,"Enterprise Technical Support Specialist",null,"IT Support",null,null,"Network Administration and Security","Microsoft Network Administrator",null,null,null,null,null,null,null,null,null,null,null,null,null,null,null,"Storage Area Networking",null,null,null,null,null,null,null,null,null,null,null,null,null,null,null,null,null,null,"Intrusion Detection and Incident Handling",null,null,null,"Cyber Security and Defense",null,null,null,null,null,null,null,null,null,null,null,null,null,null,null,null,null,null,null,null,null,null,null,null,null,null,null,null,null,null,null,null,null,null,null,null,null,null,null,null,"Business Systems",null,null,null,null,null,null,null,null,null,null,null,null,null,null,null,null,null,null,null,null,null,null,null,null,null,null,null,null,null,null,null,null,null,null,null,null,null,null,null,null,null,null,null,null,null,"Organizational Business Support Specialist",null,null,null,"Office Specialist",null,null,null,"Microsoft Office Principles",null,null,null,null,null,null,null,null,null,null,null,null,null,null,null,null,null,null,null,null,null,"International Business",null,null,"Technical Management",null,"Project Management",null,"Small Business Development",null,null,"Supervisory Management",null,"Retail Management",null,null,null,null,null,null,null,null,null,"Hospitality Management","Project Management",null,null,null,null,"Culinary Entrepreneur",null,null,null,null,null,null,null,null,null,null,null,null,"Automotive Service (ASEP)","Custom Fabrication and Finishing",null,null,null,null,null,null,null,"Aviation Maintenance Technology",null,null,null,null,null,null,null,null,null,null,null,null,null,null,null,null,null,"General Construction Laborer",null,null,null,"Construction Management and Supervision",null,null,"Plumbing Technology",null,null,"Plumbing Technology",null,null,"Wind Technology Operation & Maintenance",null,"Pipefitting",null,null,null,null,null,null,null,null,null,null,null,null,null,null,null,null,null,null,null,null,null,null,null,null,null,"Welding",null,null,null,"Welding","Welding Technologist",null,null,null,null,null,"Welding Technology",null,null,null,null,null,null,null,null,null,"Mechanical Drafting and Design - CAD Drafter","Robotic Welding Advanced",null,null,null,"Automation Robotics Engineering Technology",null,"Integrated Manufacturing Technology - CNC Machine",null,null,"Computer Aided Design (CAD) Drafting Technologies",null,null,null,"Mechanical Design",null,"Precision Machining Essentials","Nondestructive Testing Technology",null,null,null,"Manufacturing Foundations","Energy Technical Specialist - Nuclear",null,null,null,"Industrial Maintenance Mechanic",null,null,null,"Electronics Lab Assistant",null,null,null,null,null,"General Engineering Requisites",null,null,null,null,null,null,null,null,null,null,null,null,null,null,null,null,null,null,null,null,null,null,null,null,null,null,null,null,null,null,null,null,null,null,null,null,null,null,null,null,null,null,null,null,null,null,null,null,null,null,null,null,null,null,null,null,null,null,null,null,null,"Sterile Processing",null,null,null,null,null,null,null,null,null,null,"Medical Receptionist","Medical Coding Specialist",null,null,null,null,null,"Medical Office Professional",null,null,"Speech-Language Pathology Assistant","Surgical Technology","Physical Therapist Assistant","Practical Nursing","Mental and Behavioral Health Worker","Personal Training",null,null,null,null,null,"Nursing Assistant",null,"Nursing Assistant",null,"Nursing","Occupational Therapy Assistant",null,null,"Physical Therapist Assistant",null,"Practical Nursing",null,null,"Nursing","Nursing","Practical Nursing",null,null,null,null,null,null,null,null,null,null,null,null,null,null,null,null,null,"Yoga Teacher Training",null,null,null,null,null,null,"Education Paraprofessional, Title 1",null,null,null,null,null,null,null,null,null,"Law Enforcement Transfer Pathway","Law Enforcement Skills Training",null,null,"Law Enforcement Curriculum",null,null,null,null,null,"Peace Officer/Public Safety Transfer Pathway",null,null,null,null,null,null,null,null,"Paramedic for Experienced EMT","Fire Suppression Technician",null,null,"Wildland Firefighting",null,null,null,null,null,null,null,null,null,null,null,null,null,null,null,null,null,null,null,null,null,null,null,null,null,null,null,null,null,null,null,null,null,null,null,null,null,null,null,null,null,null,null,null,null,null,null,"Hair Technician",null,null,null,null,"Nail Care and Eyelash Extensions Technician"]
[null,null,null,null,null,null,null,null,null,null,"Horticulture",null,null,null,"Applications in Farm Business Management","Farm Operations and Management",null,null,"Applications in Farm Business Management",null,null,null,null,null,null,null,null,null,null,null,null,null,null,null,null,null,null,"Wilderness and Park Management",null,null,null,null,null,null,null,null,null,null,null,null,null,null,null,null,null,null,null,null,null,null,null,null,null,null,null,null,null,null,null,null,null,"Identity Security and Access Management",null,"IT Support Specialist",null,null,"PC Support Technician",null,null,null,null,null,null,null,null,null,null,null,null,null,null,null,null,null,null,null,null,null,null,null,null,null,null,null,null,null,null,null,null,null,null,null,"Offensive Security",null,null,null,"Information Assurance Professional",null,null,null,null,null,null,null,null,null,null,null,null,null,null,null,null,null,null,null,null,null,null,null,null,null,null,null,null,null,null,null,null,null,null,null,null,null,null,null,null,null,null,null,null,null,null,null,null,null,null,null,null,null,null,null,null,null,null,null,null,null,null,null,null,null,null,null,null,null,null,null,null,null,null,null,null,null,null,null,null,null,null,null,null,null,null,"Organizational Coordinator",null,null,null,null,null,null,null,"Microsoft Office Specialist",null,null,null,null,null,null,null,null,null,null,null,null,null,null,null,null,null,null,null,null,null,"Retail Management",null,null,null,null,"Sales",null,"Supervision",null,null,null,null,null,null,null,null,null,null,null,null,null,null,"Sport Management",null,null,null,null,null,"Culinary Manager",null,null,null,null,null,null,null,null,null,null,null,null,"Automotive Service Technology","General Maintenance Technician",null,null,null,null,null,null,null,"Collision and Refinishing Technician",null,null,null,null,null,null,null,null,null,null,null,null,null,null,null,null,null,"Industrial Building Engineering and Maintenance",null,null,null,"Construction Trades",null,null,"Powerline",null,null,"Residential Plumbing/HVAC",null,null,null,null,"Plumbing",null,null,null,null,null,null,null,null,null,null,null,null,null,null,null,null,null,null,null,null,null,null,null,null,null,"Welding Fabricator",null,null,null,null,"Welding Technology",null,null,null,null,null,null,null,null,null,null,null,null,null,null,null,"Robotic and Laser Welding","Robotics/Automated Systems Technology",null,null,null,"Automation Technologies",null,"Production Technologies",null,null,"Computer Aided Drafting (CAD) Technologies",null,null,null,"Mechatronics",null,"Precision Machining Technology",null,null,null,null,"Manufacturing Production Technology","Instrumentation and Process Control Technology",null,null,null,"Light Rail Train Technician",null,null,null,"Electronics Technology",null,null,null,null,null,"General Engineering Sciences",null,null,null,null,null,null,null,null,null,null,null,null,null,null,null,null,null,null,null,null,null,null,null,null,null,null,null,null,null,null,null,null,null,null,null,null,null,null,null,null,null,null,null,null,null,null,null,null,null,null,null,null,null,null,null,null,null,null,null,null,null,null,null,null,null,null,null,null,null,null,null,null,null,null,null,null,null,null,null,"Medical Records Clerk",null,null,null,null,"Professional Nursing","Trained Medication Aid","Nursing (MANE)","Practical Nursing",null,null,null,null,null,"Personal Training",null,"Personal Trainer-Group Exercise Instructor",null,"Practical Nursing","Pharmacy Technician",null,null,"Practical Nursing",null,null,null,null,"Nursing (MANE)","Personal Trainer","Respiratory Care Practitioner/Therapist",null,null,null,null,null,null,null,null,null,null,null,null,null,null,null,null,null,null,null,null,null,null,null,null,"Elementary Education Foundations Transfer Pathway",null,null,null,null,null,null,null,null,null,null,"Peace Officer/Public Safety Skills Training",null,null,"Law Enforcement Transfer Pathway",null,null,null,null,null,null,null,null,null,null,null,null,null,null,"Paramedic Science","Firefighting (NFPA 1001)",null,null,null,null,null,null,null,null,null,null,null,null,null,null,null,null,null,null,null,null,null,null,null,null,null,null,null,null,null,null,null,null,null,null,null,null,null,null,null,null,null,null,null,null,null,null,null,null,null,null,"Nail Technician",null,null,null,null,"Nail Care Technician"]
[null,null,null,null,null,null,null,null,null,null,"Specialty Crops Management",null,null,null,"Current Issues in Farm Business Management",null,null,null,"Essentials of Farm Business Management",null,null,null,null,null,null,null,null,null,null,null,null,null,null,null,null,null,null,"Wildlife Ecology",null,null,null,null,null,null,null,null,null,null,null,null,null,null,null,null,null,null,null,null,null,null,null,null,null,null,null,null,null,null,null,null,null,"Linux System Administrator",null,"Network Administrator/Analyst",null,null,null,null,null,null,null,null,null,null,null,null,null,null,null,null,null,null,null,null,null,null,null,null,null,null,null,null,null,null,null,null,null,null,null,null,null,null,"Reverse Engineering Malware Analysis and Technique",null,null,null,"JAVA",null,null,null,null,null,null,null,null,null,null,null,null,null,null,null,null,null,null,null,null,null,null,null,null,null,null,null,null,null,null,null,null,null,null,null,null,null,null,null,null,null,null,null,null,null,null,null,null,null,null,null,null,null,null,null,null,null,null,null,null,null,null,null,null,null,null,null,null,null,null,null,null,null,null,null,null,null,null,null,null,null,null,null,null,null,null,null,null,null,null,null,null,null,null,"Microsoft Office Technical Professional",null,null,null,null,null,null,null,null,null,null,null,null,null,null,null,null,null,null,null,null,null,null,null,null,null,null,"Supervisory Management",null,null,null,null,null,null,null,null,null,null,null,null,null,null,null,null,"Supervisory Leadership",null,null,null,null,null,"Food and Beverage Specialties",null,null,null,null,null,null,null,null,null,null,null,null,"Body Technician","Maintenance Light Repair",null,null,null,null,null,null,null,"Sheet Metal Technician",null,null,null,null,null,null,null,null,null,null,null,null,null,null,null,null,null,"Plumbing Pre-Apprenticeship",null,null,null,"Insulating and Sheetrocking",null,null,"Powerline Technology",null,null,"Residential Wiring",null,null,null,null,null,null,null,null,null,null,null,null,null,null,null,null,null,null,null,null,null,null,null,null,null,null,null,null,null,null,"Welding Technology",null,null,null,null,null,null,null,null,null,null,null,null,null,null,null,null,null,null,null,null,null,null,null,null,null,"CNC Operator",null,"Rapid Prototyping and Design",null,null,"Precision Machining",null,null,null,"Production Technologies",null,"Production Technologies",null,null,null,null,"Mechatronics Engineering Technology","Manufacturing Foundations",null,null,null,"Manufacturing Support Technician Level I",null,null,null,"Guitar Development and Production",null,null,null,null,null,"General Engineering Technology",null,null,null,null,null,null,null,null,null,null,null,null,null,null,null,null,null,null,null,null,null,null,null,null,null,null,null,null,null,null,null,null,null,null,null,null,null,null,null,null,null,null,null,null,null,null,null,null,null,null,null,null,null,null,null,null,null,null,null,null,null,null,null,null,null,null,null,null,null,null,null,null,null,null,null,null,null,null,null,"Sterile Processing",null,null,null,null,"Therapeutic Massage",null,"Nursing Assistant",null,null,null,null,null,null,"Physical Therapist Assistant",null,"Pharmacy Technician",null,"Surgical Technology","Practical Nursing",null,null,"Respiratory Therapy",null,null,null,null,"Nursing Assistant","Practical Nursing","Sport and Exercise Sciences",null,null,null,null,null,null,null,null,null,null,null,null,null,null,null,null,null,null,null,null,null,null,null,null,"Physical Education Teaching and Coaching",null,null,null,null,null,null,null,null,null,null,"Peace Officer/Public Safety Transfer Pathway",null,null,null,null,null,null,null,null,null,null,null,null,null,null,null,null,null,"Public Safety"]
[null,null,null,null,null,null,null,null,null,null,"Sustainable Greenhouse Production",null,null,null,"Essentials of Farm Business Management",null,null,null,"Farm Business Management",null,null,null,null,null,null,null,null,null,null,null,null,null,null,null,null,null,null,null,null,null,null,null,null,null,null,null,null,null,null,null,null,null,null,null,null,null,null,null,null,null,null,null,null,null,null,null,null,null,null,null,null,"Mobile Application Development",null,"Oracle Database Specialist",null,null,null,null,null,null,null,null,null,null,null,null,null,null,null,null,null,null,null,null,null,null,null,null,null,null,null,null,null,null,null,null,null,null,null,null,null,null,null,null,null,null,"Open Source Developer",null,null,null,null,null,null,null,null,null,null,null,null,null,null,null,null,null,null,null,null,null,null,null,null,null,null,null,null,null,null,null,null,null,null,null,null,null,null,null,null,null,null,null,null,null,null,null,null,null,null,null,null,null,null,null,null,null,null,null,null,null,null,null,null,null,null,null,null,null,null,null,null,null,null,null,null,null,null,null,null,null,null,null,null,null,null,null,null,null,null,null,null,null,null,"Written Communication Technologies",null,null,null,null,null,null,null,null,null,null,null,null,null,null,null,null,null,null,null,null,null,null,null,null,null,null,null,null,null,null,null,null,null,null,null,null,null,null,null,null,null,null,null,null,null,null,null,null,null,"Pastry Entrepreneur",null,null,null,null,null,null,null,null,null,null,null,null,"Estimator","Marine, Motorsport  & Outdoor Power Equipment Tech",null,null,null,null,null,null,null,"Small Unmanned Aircraft Systems Field Service Tech",null,null,null,null,null,null,null,null,null,null,null,null,null,null,null,null,null,"Product Fabrication",null,null,null,"Masonry",null,null,"Solar Photovoltaic Technician",null,null,null,null,null,null,null,null,null,null,null,null,null,null,null,null,null,null,null,null,null,null,null,null,null,null,null,null,null,null,null,null,null,null,null,null,null,null,null,null,null,null,null,null,null,null,null,null,null,null,null,null,null,null,null,null,null,null,null,"CNC Swiss Turning Center Technician",null,"Renewable and Sustainable Energy Technologies",null,null,null,null,null,null,null,null,null,null,null,null,null,"Mechatronics Industrial Maintenance","Mechanical Design and Manufacturing Technology",null,null,null,"Manufacturing Support Technician Level II",null,null,null,"Guitar Repair and Building",null,null,null,null,null,"Naval Nuclear Engineering Technology",null,null,null,null,null,null,null,null,null,null,null,null,null,null,null,null,null,null,null,null,null,null,null,null,null,null,null,null,null,null,null,null,null,null,null,null,null,null,null,null,null,null,null,null,null,null,null,null,null,null,null,null,null,null,null,null,null,null,null,null,null,null,null,null,null,null,null,null,null,null,null,null,null,null,null,null,null,null,null,null,null,null,null,null,null,null,"Orthotic and Prosthetic Clinical Applications",null,null,null,null,null,null,"Practical Nursing",null,null,null,null,"Surgical Technology",null,null,"Surgical Technology",null,null,null,null,"Practical Nursing","Surgical Technology","Surgical Technologist",null,null,null,null,null,null,null,null,null,null,null,null,null,null,null,null,null,null,null,null,null,null,null,null,"Special Education Transfer Pathway",null,null,null,null,null,null,null,null,null,null,null,null,null,null,null,null,null,null,null,null,null,null,null,null,null,null,null,null,"Public Safety Leadership"]
[null,null,null,null,null,null,null,null,null,null,"Sustainable Local Food",null,null,null,"Farm Business Management",null,null,null,"Farm Business Management AgSpark",null,null,null,null,null,null,null,null,null,null,null,null,null,null,null,null,null,null,null,null,null,null,null,null,null,null,null,null,null,null,null,null,null,null,null,null,null,null,null,null,null,null,null,null,null,null,null,null,null,null,null,null,null,null,null,null,null,null,null,null,null,null,null,null,null,null,null,null,null,null,null,null,null,null,null,null,null,null,null,null,null,null,null,null,null,null,null,null,null,null,null,null,null,null,null,null,null,"Software Developer",null,null,null,null,null,null,null,null,null,null,null,null,null,null,null,null,null,null,null,null,null,null,null,null,null,null,null,null,null,null,null,null,null,null,null,null,null,null,null,null,null,null,null,null,null,null,null,null,null,null,null,null,null,null,null,null,null,null,null,null,null,null,null,null,null,null,null,null,null,null,null,null,null,null,null,null,null,null,null,null,null,null,null,null,null,null,null,null,null,null,null,null,null,null,null,null,null,null,null,null,null,null,null,null,null,null,null,null,null,null,null,null,null,null,null,null,null,null,null,null,null,null,null,null,null,null,null,null,null,null,null,null,null,null,null,null,null,null,null,null,null,null,null,null,null,null,null,null,null,null,null,null,null,null,null,null,null,"Heavy Construction Equipment Maintenance","Medium Heavy Truck Drivetrain Technician",null,null,null,null,null,null,null,"Small Unmanned Aircraft Systems Technician",null,null,null,null,null,null,null,null,null,null,null,null,null,null,null,null,null,"Residential Cabinetry",null,null,null,"Network Cabling Technician",null,null,"Wind Energy Mechanic",null,null,null,null,null,null,null,null,null,null,null,null,null,null,null,null,null,null,null,null,null,null,null,null,null,null,null,null,null,null,null,null,null,null,null,null,null,null,null,null,null,null,null,null,null,null,null,null,null,null,null,null,null,null,null,null,null,null,null,"Computer Numerical Control (CNC) Setup Technician",null,"Robotic & Manufacturing Automation Technology",null,null,null,null,null,null,null,null,null,null,null,null,null,null,"Mechatronics Technology",null,null,null,"National Certified Fluid Power Specialist",null,null,null,"Violin Repair",null,null,null,null,null,"Nuclear Engineering Fundamentals",null,null,null,null,null,null,null,null,null,null,null,null,null,null,null,null,null,null,null,null,null,null,null,null,null,null,null,null,null,null,null,null,null,null,null,null,null,null,null,null,null,null,null,null,null,null,null,null,null,null,null,null,null,null,null,null,null,null,null,null,null,null,null,null,null,null,null,null,null,null,null,null,null,null,null,null,null,null,null,null,null,null,null,null,null,null,"Orthotic and Prosthetic Fitter",null,null,null,null,null,null,"Respiratory Therapy"]
[null,null,null,null,null,null,null,null,null,null,"Viticulture",null,null,null,"Production Agriculture",null,null,null,"Farm Production, Management, and Operations",null,null,null,null,null,null,null,null,null,null,null,null,null,null,null,null,null,null,null,null,null,null,null,null,null,null,null,null,null,null,null,null,null,null,null,null,null,null,null,null,null,null,null,null,null,null,null,null,null,null,null,null,null,null,null,null,null,null,null,null,null,null,null,null,null,null,null,null,null,null,null,null,null,null,null,null,null,null,null,null,null,null,null,null,null,null,null,null,null,null,null,null,null,null,null,null,null,"Software Development",null,null,null,null,null,null,null,null,null,null,null,null,null,null,null,null,null,null,null,null,null,null,null,null,null,null,null,null,null,null,null,null,null,null,null,null,null,null,null,null,null,null,null,null,null,null,null,null,null,null,null,null,null,null,null,null,null,null,null,null,null,null,null,null,null,null,null,null,null,null,null,null,null,null,null,null,null,null,null,null,null,null,null,null,null,null,null,null,null,null,null,null,null,null,null,null,null,null,null,null,null,null,null,null,null,null,null,null,null,null,null,null,null,null,null,null,null,null,null,null,null,null,null,null,null,null,null,null,null,null,null,null,null,null,null,null,null,null,null,null,null,null,null,null,null,null,null,null,null,null,null,null,null,null,null,null,null,"Heavy Construction Equipment Mechanic","Medium Heavy Truck Maintenance Technician",null,null,null,null,null,null,null,"UAS & Geospatial Applications",null,null,null,null,null,null,null,null,null,null,null,null,null,null,null,null,null,"Residential Remodeling and Design",null,null,null,"Roofing",null,null,"Wind Energy Technology",null,null,null,null,null,null,null,null,null,null,null,null,null,null,null,null,null,null,null,null,null,null,null,null,null,null,null,null,null,null,null,null,null,null,null,null,null,null,null,null,null,null,null,null,null,null,null,null,null,null,null,null,null,null,null,null,null,null,null,"Computer Numerical Control (CNC) Technician",null,"Solidworks (CAD)",null,null,null,null,null,null,null,null,null,null,null,null,null,null,"Production Technologies",null,null,null,"Pneumatic Engineering Technician",null,null,null,null,null,null,null,null,null,"Nuclear Engineering Technology",null,null,null,null,null,null,null,null,null,null,null,null,null,null,null,null,null,null,null,null,null,null,null,null,null,null,null,null,null,null,null,null,null,null,null,null,null,null,null,null,null,null,null,null,null,null,null,null,null,null,null,null,null,null,null,null,null,null,null,null,null,null,null,null,null,null,null,null,null,null,null,null,null,null,null,null,null,null,null,null,null,null,null,null,null,null,"Orthotics Technician",null,null,null,null,null,null,"Surgical Technology"]
[null,null,null,null,null,null,null,null,null,null,null,null,null,null,null,null,null,null,"FBM Current Issues in Farm Business Management",null,null,null,null,null,null,null,null,null,null,null,null,null,null,null,null,null,null,null,null,null,null,null,null,null,null,null,null,null,null,null,null,null,null,null,null,null,null,null,null,null,null,null,null,null,null,null,null,null,null,null,null,null,null,null,null,null,null,null,null,null,null,null,null,null,null,null,null,null,null,null,null,null,null,null,null,null,null,null,null,null,null,null,null,null,null,null,null,null,null,null,null,null,null,null,null,null,"Visual C# Developer",null,null,null,null,null,null,null,null,null,null,null,null,null,null,null,null,null,null,null,null,null,null,null,null,null,null,null,null,null,null,null,null,null,null,null,null,null,null,null,null,null,null,null,null,null,null,null,null,null,null,null,null,null,null,null,null,null,null,null,null,null,null,null,null,null,null,null,null,null,null,null,null,null,null,null,null,null,null,null,null,null,null,null,null,null,null,null,null,null,null,null,null,null,null,null,null,null,null,null,null,null,null,null,null,null,null,null,null,null,null,null,null,null,null,null,null,null,null,null,null,null,null,null,null,null,null,null,null,null,null,null,null,null,null,null,null,null,null,null,null,null,null,null,null,null,null,null,null,null,null,null,null,null,null,null,null,null,"Heavy Construction Equipment Technology","Medium Heavy Truck Technology",null,null,null,null,null,null,null,"Uncrewed Aircraft Systems",null,null,null,null,null,null,null,null,null,null,null,null,null,null,null,null,null,"Street, Utility and Park Maintenance Technician",null,null,null,null,null,null,"Windsmith",null,null,null,null,null,null,null,null,null,null,null,null,null,null,null,null,null,null,null,null,null,null,null,null,null,null,null,null,null,null,null,null,null,null,null,null,null,null,null,null,null,null,null,null,null,null,null,null,null,null,null,null,null,null,null,null,null,null,null,"Controls Engineering Technician",null,null,null,null,null,null,null,null,null,null,null,null,null,null,null,null,"Robotics and Automation Technology",null,null,null,null,null,null,null,null,null,null,null,null,null,null,null,null,null,null,null,null,null,null,null,null,null,null,null,null,null,null,null,null,null,null,null,null,null,null,null,null,null,null,null,null,null,null,null,null,null,null,null,null,null,null,null,null,null,null,null,null,null,null,null,null,null,null,null,null,null,null,null,null,null,null,null,null,null,null,null,null,null,null,null,null,null,null,null,null,null,null,null,null,null,null,null,null,null,null,null,null,"Pedorthic"]
[null,null,null,null,null,null,null,null,null,null,null,null,null,null,null,null,null,null,"Production Agriculture",null,null,null,null,null,null,null,null,null,null,null,null,null,null,null,null,null,null,null,null,null,null,null,null,null,null,null,null,null,null,null,null,null,null,null,null,null,null,null,null,null,null,null,null,null,null,null,null,null,null,null,null,null,null,null,null,null,null,null,null,null,null,null,null,null,null,null,null,null,null,null,null,null,null,null,null,null,null,null,null,null,null,null,null,null,null,null,null,null,null,null,null,null,null,null,null,null,"Web Developer",null,null,null,null,null,null,null,null,null,null,null,null,null,null,null,null,null,null,null,null,null,null,null,null,null,null,null,null,null,null,null,null,null,null,null,null,null,null,null,null,null,null,null,null,null,null,null,null,null,null,null,null,null,null,null,null,null,null,null,null,null,null,null,null,null,null,null,null,null,null,null,null,null,null,null,null,null,null,null,null,null,null,null,null,null,null,null,null,null,null,null,null,null,null,null,null,null,null,null,null,null,null,null,null,null,null,null,null,null,null,null,null,null,null,null,null,null,null,null,null,null,null,null,null,null,null,null,null,null,null,null,null,null,null,null,null,null,null,null,null,null,null,null,null,null,null,null,null,null,null,null,null,null,null,null,null,null,"Heavy Duty Truck Technology","Motorcycle Technician",null,null,null,null,null,null,null,null,null,null,null,null,null,null,null,null,null,null,null,null,null,null,null,null,null,"Sustainable Construction",null,null,null,null,null,null,null,null,null,null,null,null,null,null,null,null,null,null,null,null,null,null,null,null,null,null,null,null,null,null,null,null,null,null,null,null,null,null,null,null,null,null,null,null,null,null,null,null,null,null,null,null,null,null,null,null,null,null,null,null,null,null,null,null,null,null,"Creo Parametric Operator",null,null,null,null,null,null,null,null,null,null,null,null,null,null,null,null,null,null,null,null,null,null,null,null,null,null,null,null,null,null,null,null,null,null,null,null,null,null,null,null,null,null,null,null,null,null,null,null,null,null,null,null,null,null,null,null,null,null,null,null,null,null,null,null,null,null,null,null,null,null,null,null,null,null,null,null,null,null,null,null,null,null,null,null,null,null,null,null,null,null,null,null,null,null,null,null,null,null,null,null,null,null,null,null,null,null,null,null,null,null,null,null,null,null,null,null,null,"Prosthetic Technology"]
[null,null,null,null,null,null,null,null,null,null,null,null,null,null,null,null,null,null,"Sustainable Microfarming",null,null,null,null,null,null,null,null,null,null,null,null,null,null,null,null,null,null,null,null,null,null,null,null,null,null,null,null,null,null,null,null,null,null,null,null,null,null,null,null,null,null,null,null,null,null,null,null,null,null,null,null,null,null,null,null,null,null,null,null,null,null,null,null,null,null,null,null,null,null,null,null,null,null,null,null,null,null,null,null,null,null,null,null,null,null,null,null,null,null,null,null,null,null,null,null,null,null,null,null,null,null,null,null,null,null,null,null,null,null,null,null,null,null,null,null,null,null,null,null,null,null,null,null,null,null,null,null,null,null,null,null,null,null,null,null,null,null,null,null,null,null,null,null,null,null,null,null,null,null,null,null,null,null,null,null,null,null,null,null,null,null,null,null,null,null,null,null,null,null,null,null,null,null,null,null,null,null,null,null,null,null,null,null,null,null,null,null,null,null,null,null,null,null,null,null,null,null,null,null,null,null,null,null,null,null,null,null,null,null,null,null,null,null,null,null,null,null,null,null,null,null,null,null,null,null,null,null,null,null,null,null,null,null,null,null,null,null,null,null,null,null,null,null,null,null,null,null,null,null,null,null,null,null,null,"Mopar Career Automotive Program (MCAP)","Non-Structural Repair Technician Assistant",null,null,null,null,null,null,null,null,null,null,null,null,null,null,null,null,null,null,null,null,null,null,null,null,null,"Wood Machining Fabrication",null,null,null,null,null,null,null,null,null,null,null,null,null,null,null,null,null,null,null,null,null,null,null,null,null,null,null,null,null,null,null,null,null,null,null,null,null,null,null,null,null,null,null,null,null,null,null,null,null,null,null,null,null,null,null,null,null,null,null,null,null,null,null,null,null,null,"Engineering CAD Technology"]
[null,null,null,null,null,null,null,null,null,null,null,null,null,null,null,null,null,null,null,null,null,null,null,null,null,null,null,null,null,null,null,null,null,null,null,null,null,null,null,null,null,null,null,null,null,null,null,null,null,null,null,null,null,null,null,null,null,null,null,null,null,null,null,null,null,null,null,null,null,null,null,null,null,null,null,null,null,null,null,null,null,null,null,null,null,null,null,null,null,null,null,null,null,null,null,null,null,null,null,null,null,null,null,null,null,null,null,null,null,null,null,null,null,null,null,null,null,null,null,null,null,null,null,null,null,null,null,null,null,null,null,null,null,null,null,null,null,null,null,null,null,null,null,null,null,null,null,null,null,null,null,null,null,null,null,null,null,null,null,null,null,null,null,null,null,null,null,null,null,null,null,null,null,null,null,null,null,null,null,null,null,null,null,null,null,null,null,null,null,null,null,null,null,null,null,null,null,null,null,null,null,null,null,null,null,null,null,null,null,null,null,null,null,null,null,null,null,null,null,null,null,null,null,null,null,null,null,null,null,null,null,null,null,null,null,null,null,null,null,null,null,null,null,null,null,null,null,null,null,null,null,null,null,null,null,null,null,null,null,null,null,null,null,null,null,null,null,null,null,null,null,null,null,null,"Paint Preparation","Outboard Technician",null,null,null,null,null,null,null,null,null,null,null,null,null,null,null,null,null,null,null,null,null,null,null,null,null,null,null,null,null,null,null,null,null,null,null,null,null,null,null,null,null,null,null,null,null,null,null,null,null,null,null,null,null,null,null,null,null,null,null,null,null,null,null,null,null,null,null,null,null,null,null,null,null,null,null,null,null,null,null,null,null,null,null,null,null,null,null,null,null,null,null,null,"Extrusion Molding"]
[null,null,null,null,null,null,null,null,null,null,null,null,null,null,null,null,null,null,null,null,null,null,null,null,null,null,null,null,null,null,null,null,null,null,null,null,null,null,null,null,null,null,null,null,null,null,null,null,null,null,null,null,null,null,null,null,null,null,null,null,null,null,null,null,null,null,null,null,null,null,null,null,null,null,null,null,null,null,null,null,null,null,null,null,null,null,null,null,null,null,null,null,null,null,null,null,null,null,null,null,null,null,null,null,null,null,null,null,null,null,null,null,null,null,null,null,null,null,null,null,null,null,null,null,null,null,null,null,null,null,null,null,null,null,null,null,null,null,null,null,null,null,null,null,null,null,null,null,null,null,null,null,null,null,null,null,null,null,null,null,null,null,null,null,null,null,null,null,null,null,null,null,null,null,null,null,null,null,null,null,null,null,null,null,null,null,null,null,null,null,null,null,null,null,null,null,null,null,null,null,null,null,null,null,null,null,null,null,null,null,null,null,null,null,null,null,null,null,null,null,null,null,null,null,null,null,null,null,null,null,null,null,null,null,null,null,null,null,null,null,null,null,null,null,null,null,null,null,null,null,null,null,null,null,null,null,null,null,null,null,null,null,null,null,null,null,null,null,null,null,null,null,null,null,"Truck Fleet Maintenance","Power Equipment",null,null,null,null,null,null,null,null,null,null,null,null,null,null,null,null,null,null,null,null,null,null,null,null,null,null,null,null,null,null,null,null,null,null,null,null,null,null,null,null,null,null,null,null,null,null,null,null,null,null,null,null,null,null,null,null,null,null,null,null,null,null,null,null,null,null,null,null,null,null,null,null,null,null,null,null,null,null,null,null,null,null,null,null,null,null,null,null,null,null,null,null,"Injection Molding"]
[null,null,null,null,null,null,null,null,null,null,null,null,null,null,null,null,null,null,null,null,null,null,null,null,null,null,null,null,null,null,null,null,null,null,null,null,null,null,null,null,null,null,null,null,null,null,null,null,null,null,null,null,null,null,null,null,null,null,null,null,null,null,null,null,null,null,null,null,null,null,null,null,null,null,null,null,null,null,null,null,null,null,null,null,null,null,null,null,null,null,null,null,null,null,null,null,null,null,null,null,null,null,null,null,null,null,null,null,null,null,null,null,null,null,null,null,null,null,null,null,null,null,null,null,null,null,null,null,null,null,null,null,null,null,null,null,null,null,null,null,null,null,null,null,null,null,null,null,null,null,null,null,null,null,null,null,null,null,null,null,null,null,null,null,null,null,null,null,null,null,null,null,null,null,null,null,null,null,null,null,null,null,null,null,null,null,null,null,null,null,null,null,null,null,null,null,null,null,null,null,null,null,null,null,null,null,null,null,null,null,null,null,null,null,null,null,null,null,null,null,null,null,null,null,null,null,null,null,null,null,null,null,null,null,null,null,null,null,null,null,null,null,null,null,null,null,null,null,null,null,null,null,null,null,null,null,null,null,null,null,null,null,null,null,null,null,null,null,null,null,null,null,null,null,null,"Refinishing Technicial Assistant",null,null,null,null,null,null,null,null,null,null,null,null,null,null,null,null,null,null,null,null,null,null,null,null,null,null,null,null,null,null,null,null,null,null,null,null,null,null,null,null,null,null,null,null,null,null,null,null,null,null,null,null,null,null,null,null,null,null,null,null,null,null,null,null,null,null,null,null,null,null,null,null,null,null,null,null,null,null,null,null,null,null,null,null,null,null,null,null,null,null,null,null,"Manufacturing Engineering Technology"]
[null,null,null,null,null,null,null,null,null,null,null,null,null,null,null,null,null,null,null,null,null,null,null,null,null,null,null,null,null,null,null,null,null,null,null,null,null,null,null,null,null,null,null,null,null,null,null,null,null,null,null,null,null,null,null,null,null,null,null,null,null,null,null,null,null,null,null,null,null,null,null,null,null,null,null,null,null,null,null,null,null,null,null,null,null,null,null,null,null,null,null,null,null,null,null,null,null,null,null,null,null,null,null,null,null,null,null,null,null,null,null,null,null,null,null,null,null,null,null,null,null,null,null,null,null,null,null,null,null,null,null,null,null,null,null,null,null,null,null,null,null,null,null,null,null,null,null,null,null,null,null,null,null,null,null,null,null,null,null,null,null,null,null,null,null,null,null,null,null,null,null,null,null,null,null,null,null,null,null,null,null,null,null,null,null,null,null,null,null,null,null,null,null,null,null,null,null,null,null,null,null,null,null,null,null,null,null,null,null,null,null,null,null,null,null,null,null,null,null,null,null,null,null,null,null,null,null,null,null,null,null,null,null,null,null,null,null,null,null,null,null,null,null,null,null,null,null,null,null,null,null,null,null,null,null,null,null,null,null,null,null,null,null,null,null,null,null,null,null,null,null,null,null,null,null,"Structural Repais Technician Assistant",null,null,null,null,null,null,null,null,null,null,null,null,null,null,null,null,null,null,null,null,null,null,null,null,null,null,null,null,null,null,null,null,null,null,null,null,null,null,null,null,null,null,null,null,null,null,null,null,null,null,null,null,null,null,null,null,null,null,null,null,null,null,null,null,null,null,null,null,null,null,null,null,null,null,null,null,null,null,null,null,null,null,null,null,null,null,null,null,null,null,null,null,"Manufacturing Fundamentals (M-Powered)"]
[null,null,null,null,null,null,null,null,null,null,null,null,null,null,null,null,null,null,null,null,null,null,null,null,null,null,null,null,null,null,null,null,null,null,null,null,null,null,null,null,null,null,null,null,null,null,null,null,null,null,null,null,null,null,null,null,null,null,null,null,null,null,null,null,null,null,null,null,null,null,null,null,null,null,null,null,null,null,null,null,null,null,null,null,null,null,null,null,null,null,null,null,null,null,null,null,null,null,null,null,null,null,null,null,null,null,null,null,null,null,null,null,null,null,null,null,null,null,null,null,null,null,null,null,null,null,null,null,null,null,null,null,null,null,null,null,null,null,null,null,null,null,null,null,null,null,null,null,null,null,null,null,null,null,null,null,null,null,null,null,null,null,null,null,null,null,null,null,null,null,null,null,null,null,null,null,null,null,null,null,null,null,null,null,null,null,null,null,null,null,null,null,null,null,null,null,null,null,null,null,null,null,null,null,null,null,null,null,null,null,null,null,null,null,null,null,null,null,null,null,null,null,null,null,null,null,null,null,null,null,null,null,null,null,null,null,null,null,null,null,null,null,null,null,null,null,null,null,null,null,null,null,null,null,null,null,null,null,null,null,null,null,null,null,null,null,null,null,null,null,null,null,null,null,null,null,null,null,null,null,null,null,null,null,null,null,null,null,null,null,null,null,null,null,null,null,null,null,null,null,null,null,null,null,null,null,null,null,null,null,null,null,null,null,null,null,null,null,null,null,null,null,null,null,null,null,null,null,null,null,null,null,null,null,null,null,null,null,null,null,null,null,null,null,null,null,null,null,null,null,null,null,null,null,null,null,null,null,null,null,null,null,null,null,null,null,null,null,"Manufacturing Technician"]
[null,null,null,null,null,null,null,null,null,null,null,null,null,null,null,null,null,null,null,null,null,null,null,null,null,null,null,null,null,null,null,null,null,null,null,null,null,null,null,null,null,null,null,null,null,null,null,null,null,null,null,null,null,null,null,null,null,null,null,null,null,null,null,null,null,null,null,null,null,null,null,null,null,null,null,null,null,null,null,null,null,null,null,null,null,null,null,null,null,null,null,null,null,null,null,null,null,null,null,null,null,null,null,null,null,null,null,null,null,null,null,null,null,null,null,null,null,null,null,null,null,null,null,null,null,null,null,null,null,null,null,null,null,null,null,null,null,null,null,null,null,null,null,null,null,null,null,null,null,null,null,null,null,null,null,null,null,null,null,null,null,null,null,null,null,null,null,null,null,null,null,null,null,null,null,null,null,null,null,null,null,null,null,null,null,null,null,null,null,null,null,null,null,null,null,null,null,null,null,null,null,null,null,null,null,null,null,null,null,null,null,null,null,null,null,null,null,null,null,null,null,null,null,null,null,null,null,null,null,null,null,null,null,null,null,null,null,null,null,null,null,null,null,null,null,null,null,null,null,null,null,null,null,null,null,null,null,null,null,null,null,null,null,null,null,null,null,null,null,null,null,null,null,null,null,null,null,null,null,null,null,null,null,null,null,null,null,null,null,null,null,null,null,null,null,null,null,null,null,null,null,null,null,null,null,null,null,null,null,null,null,null,null,null,null,null,null,null,null,null,null,null,null,null,null,null,null,null,null,null,null,null,null,null,null,null,null,null,null,null,null,null,null,null,null,null,null,null,null,null,null,null,null,null,null,null,null,null,null,null,null,null,null,null,null,null,null,null,"Mazak CNC Technician"]
[null,null,null,null,null,null,null,null,null,null,null,null,null,null,null,null,null,null,null,null,null,null,null,null,null,null,null,null,null,null,null,null,null,null,null,null,null,null,null,null,null,null,null,null,null,null,null,null,null,null,null,null,null,null,null,null,null,null,null,null,null,null,null,null,null,null,null,null,null,null,null,null,null,null,null,null,null,null,null,null,null,null,null,null,null,null,null,null,null,null,null,null,null,null,null,null,null,null,null,null,null,null,null,null,null,null,null,null,null,null,null,null,null,null,null,null,null,null,null,null,null,null,null,null,null,null,null,null,null,null,null,null,null,null,null,null,null,null,null,null,null,null,null,null,null,null,null,null,null,null,null,null,null,null,null,null,null,null,null,null,null,null,null,null,null,null,null,null,null,null,null,null,null,null,null,null,null,null,null,null,null,null,null,null,null,null,null,null,null,null,null,null,null,null,null,null,null,null,null,null,null,null,null,null,null,null,null,null,null,null,null,null,null,null,null,null,null,null,null,null,null,null,null,null,null,null,null,null,null,null,null,null,null,null,null,null,null,null,null,null,null,null,null,null,null,null,null,null,null,null,null,null,null,null,null,null,null,null,null,null,null,null,null,null,null,null,null,null,null,null,null,null,null,null,null,null,null,null,null,null,null,null,null,null,null,null,null,null,null,null,null,null,null,null,null,null,null,null,null,null,null,null,null,null,null,null,null,null,null,null,null,null,null,null,null,null,null,null,null,null,null,null,null,null,null,null,null,null,null,null,null,null,null,null,null,null,null,null,null,null,null,null,null,null,null,null,null,null,null,null,null,null,null,null,null,null,null,null,null,null,null,null,null,null,null,null,null,null,"Mechatronics"]
[null,null,null,null,null,null,null,null,null,null,null,null,null,null,null,null,null,null,null,null,null,null,null,null,null,null,null,null,null,null,null,null,null,null,null,null,null,null,null,null,null,null,null,null,null,null,null,null,null,null,null,null,null,null,null,null,null,null,null,null,null,null,null,null,null,null,null,null,null,null,null,null,null,null,null,null,null,null,null,null,null,null,null,null,null,null,null,null,null,null,null,null,null,null,null,null,null,null,null,null,null,null,null,null,null,null,null,null,null,null,null,null,null,null,null,null,null,null,null,null,null,null,null,null,null,null,null,null,null,null,null,null,null,null,null,null,null,null,null,null,null,null,null,null,null,null,null,null,null,null,null,null,null,null,null,null,null,null,null,null,null,null,null,null,null,null,null,null,null,null,null,null,null,null,null,null,null,null,null,null,null,null,null,null,null,null,null,null,null,null,null,null,null,null,null,null,null,null,null,null,null,null,null,null,null,null,null,null,null,null,null,null,null,null,null,null,null,null,null,null,null,null,null,null,null,null,null,null,null,null,null,null,null,null,null,null,null,null,null,null,null,null,null,null,null,null,null,null,null,null,null,null,null,null,null,null,null,null,null,null,null,null,null,null,null,null,null,null,null,null,null,null,null,null,null,null,null,null,null,null,null,null,null,null,null,null,null,null,null,null,null,null,null,null,null,null,null,null,null,null,null,null,null,null,null,null,null,null,null,null,null,null,null,null,null,null,null,null,null,null,null,null,null,null,null,null,null,null,null,null,null,null,null,null,null,null,null,null,null,null,null,null,null,null,null,null,null,null,null,null,null,null,null,null,null,null,null,null,null,null,null,null,null,null,null,null,null,null,"Medical Device Molding"]
[null,null,null,null,null,null,null,null,null,null,null,null,null,null,null,null,null,null,null,null,null,null,null,null,null,null,null,null,null,null,null,null,null,null,null,null,null,null,null,null,null,null,null,null,null,null,null,null,null,null,null,null,null,null,null,null,null,null,null,null,null,null,null,null,null,null,null,null,null,null,null,null,null,null,null,null,null,null,null,null,null,null,null,null,null,null,null,null,null,null,null,null,null,null,null,null,null,null,null,null,null,null,null,null,null,null,null,null,null,null,null,null,null,null,null,null,null,null,null,null,null,null,null,null,null,null,null,null,null,null,null,null,null,null,null,null,null,null,null,null,null,null,null,null,null,null,null,null,null,null,null,null,null,null,null,null,null,null,null,null,null,null,null,null,null,null,null,null,null,null,null,null,null,null,null,null,null,null,null,null,null,null,null,null,null,null,null,null,null,null,null,null,null,null,null,null,null,null,null,null,null,null,null,null,null,null,null,null,null,null,null,null,null,null,null,null,null,null,null,null,null,null,null,null,null,null,null,null,null,null,null,null,null,null,null,null,null,null,null,null,null,null,null,null,null,null,null,null,null,null,null,null,null,null,null,null,null,null,null,null,null,null,null,null,null,null,null,null,null,null,null,null,null,null,null,null,null,null,null,null,null,null,null,null,null,null,null,null,null,null,null,null,null,null,null,null,null,null,null,null,null,null,null,null,null,null,null,null,null,null,null,null,null,null,null,null,null,null,null,null,null,null,null,null,null,null,null,null,null,null,null,null,null,null,null,null,null,null,null,null,null,null,null,null,null,null,null,null,null,null,null,null,null,null,null,null,null,null,null,null,null,null,null,null,null,null,null,null,"Plastics Engineering Technology"]
[null,null,null,null,null,null,null,null,null,null,null,null,null,null,null,null,null,null,null,null,null,null,null,null,null,null,null,null,null,null,null,null,null,null,null,null,null,null,null,null,null,null,null,null,null,null,null,null,null,null,null,null,null,null,null,null,null,null,null,null,null,null,null,null,null,null,null,null,null,null,null,null,null,null,null,null,null,null,null,null,null,null,null,null,null,null,null,null,null,null,null,null,null,null,null,null,null,null,null,null,null,null,null,null,null,null,null,null,null,null,null,null,null,null,null,null,null,null,null,null,null,null,null,null,null,null,null,null,null,null,null,null,null,null,null,null,null,null,null,null,null,null,null,null,null,null,null,null,null,null,null,null,null,null,null,null,null,null,null,null,null,null,null,null,null,null,null,null,null,null,null,null,null,null,null,null,null,null,null,null,null,null,null,null,null,null,null,null,null,null,null,null,null,null,null,null,null,null,null,null,null,null,null,null,null,null,null,null,null,null,null,null,null,null,null,null,null,null,null,null,null,null,null,null,null,null,null,null,null,null,null,null,null,null,null,null,null,null,null,null,null,null,null,null,null,null,null,null,null,null,null,null,null,null,null,null,null,null,null,null,null,null,null,null,null,null,null,null,null,null,null,null,null,null,null,null,null,null,null,null,null,null,null,null,null,null,null,null,null,null,null,null,null,null,null,null,null,null,null,null,null,null,null,null,null,null,null,null,null,null,null,null,null,null,null,null,null,null,null,null,null,null,null,null,null,null,null,null,null,null,null,null,null,null,null,null,null,null,null,null,null,null,null,null,null,null,null,null,null,null,null,null,null,null,null,null,null,null,null,null,null,null,null,null,null,null,null,null,"Production Technologies"]
[null,null,null,null,null,null,null,null,null,null,null,null,null,null,null,null,null,null,null,null,null,null,null,null,null,null,null,null,null,null,null,null,null,null,null,null,null,null,null,null,null,null,null,null,null,null,null,null,null,null,null,null,null,null,null,null,null,null,null,null,null,null,null,null,null,null,null,null,null,null,null,null,null,null,null,null,null,null,null,null,null,null,null,null,null,null,null,null,null,null,null,null,null,null,null,null,null,null,null,null,null,null,null,null,null,null,null,null,null,null,null,null,null,null,null,null,null,null,null,null,null,null,null,null,null,null,null,null,null,null,null,null,null,null,null,null,null,null,null,null,null,null,null,null,null,null,null,null,null,null,null,null,null,null,null,null,null,null,null,null,null,null,null,null,null,null,null,null,null,null,null,null,null,null,null,null,null,null,null,null,null,null,null,null,null,null,null,null,null,null,null,null,null,null,null,null,null,null,null,null,null,null,null,null,null,null,null,null,null,null,null,null,null,null,null,null,null,null,null,null,null,null,null,null,null,null,null,null,null,null,null,null,null,null,null,null,null,null,null,null,null,null,null,null,null,null,null,null,null,null,null,null,null,null,null,null,null,null,null,null,null,null,null,null,null,null,null,null,null,null,null,null,null,null,null,null,null,null,null,null,null,null,null,null,null,null,null,null,null,null,null,null,null,null,null,null,null,null,null,null,null,null,null,null,null,null,null,null,null,null,null,null,null,null,null,null,null,null,null,null,null,null,null,null,null,null,null,null,null,null,null,null,null,null,null,null,null,null,null,null,null,null,null,null,null,null,null,null,null,null,null,null,null,null,null,null,null,null,null,null,null,null,null,null,null,null,null,null,"Scientific Injection Molding Specialist"]
[null,null,null,null,null,null,null,null,null,null,null,null,null,null,null,null,null,null,null,null,null,null,null,null,null,null,null,null,null,null,null,null,null,null,null,null,null,null,null,null,null,null,null,null,null,null,null,null,null,null,null,null,null,null,null,null,null,null,null,null,null,null,null,null,null,null,null,null,null,null,null,null,null,null,null,null,null,null,null,null,null,null,null,null,null,null,null,null,null,null,null,null,null,null,null,null,null,null,null,null,null,null,null,null,null,null,null,null,null,null,null,null,null,null,null,null,null,null,null,null,null,null,null,null,null,null,null,null,null,null,null,null,null,null,null,null,null,null,null,null,null,null,null,null,null,null,null,null,null,null,null,null,null,null,null,null,null,null,null,null,null,null,null,null,null,null,null,null,null,null,null,null,null,null,null,null,null,null,null,null,null,null,null,null,null,null,null,null,null,null,null,null,null,null,null,null,null,null,null,null,null,null,null,null,null,null,null,null,null,null,null,null,null,null,null,null,null,null,null,null,null,null,null,null,null,null,null,null,null,null,null,null,null,null,null,null,null,null,null,null,null,null,null,null,null,null,null,null,null,null,null,null,null,null,null,null,null,null,null,null,null,null,null,null,null,null,null,null,null,null,null,null,null,null,null,null,null,null,null,null,null,null,null,null,null,null,null,null,null,null,null,null,null,null,null,null,null,null,null,null,null,null,null,null,null,null,null,null,null,null,null,null,null,null,null,null,null,null,null,null,null,null,null,null,null,null,null,null,null,null,null,null,null,null,null,null,null,null,null,null,null,null,null,null,null,null,null,null,null,null,null,null,null,null,null,null,null,null,null,null,null,null,null,null,null,null,null,null,"SOLIDWORKS Operator"]
[null,null,null,null,null,null,null,null,null,null,null,null,null,null,null,null,null,null,null,null,null,null,null,null,null,null,null,null,null,null,null,null,null,null,null,null,null,null,null,null,null,null,null,null,null,null,null,null,null,null,null,null,null,null,null,null,null,null,null,null,null,null,null,null,null,null,null,null,null,null,null,null,null,null,null,null,null,null,null,null,null,null,null,null,null,null,null,null,null,null,null,null,null,null,null,null,null,null,null,null,null,null,null,null,null,null,null,null,null,null,null,null,null,null,null,null,null,null,null,null,null,null,null,null,null,null,null,null,null,null,null,null,null,null,null,null,null,null,null,null,null,null,null,null,null,null,null,null,null,null,null,null,null,null,null,null,null,null,null,null,null,null,null,null,null,null,null,null,null,null,null,null,null,null,null,null,null,null,null,null,null,null,null,null,null,null,null,null,null,null,null,null,null,null,null,null,null,null,null,null,null,null,null,null,null,null,null,null,null,null,null,null,null,null,null,null,null,null,null,null,null,null,null,null,null,null,null,null,null,null,null,null,null,null,null,null,null,null,null,null,null,null,null,null,null,null,null,null,null,null,null,null,null,null,null,null,null,null,null,null,null,null,null,null,null,null,null,null,null,null,null,null,null,null,null,null,null,null,null,null,null,null,null,null,null,null,null,null,null,null,null,null,null,null,null,null,null,null,null,null,null,null,null,null,null,null,null,null,null,null,null,null,null,null,null,null,null,null,null,null,null,null,null,null,null,null,null,null,null,null,null,null,null,null,null,null,null,null,null,null,null,null,null,null,null,null,null,null,null,null,null,null,null,null,null,null,null,null,null,null,null,null,null,null,null,null,null,null,"Supply Chain Technician"]